{"text_format":"1","workbook":"xlsx","n_sheets":30,"sheets":["START","Uppstart","Rutiner och styrning","Organisation","Riskkostnad","Information","Person","Skalskydd","Utrymning","Brand","El","Vatten","IT","Fordon","Restvärde","Tillbudsrapportering","Försörjningssystem","Fastighet","Ordning och reda","Värdefull egendom","Ansvar","Farligt gods","Kontinuitetsplanering","Laboratoriemiljö","Bruttolista","Behandla risk","Manual","Rapport","Kontaktuppgifter","Inställningar"],"not_rendered":{"charts":0,"images":24,"macros":1,"external_links":0,"defined_names":7,"comments":0,"pivot_tables":0},"unopened":[],"bounds":{"document_bytes":16777216,"sheet_cells":100000,"rows_first":2000,"rows_last":500,"rows_between":2000,"halvings":0,"cell_chars":16384,"cell_head_chars":4096},"cells_cut":0,"cells_raw":0,"read":"whole","date_system":"1900"}

{"sheet":"START","index":0,"n_rows":15,"n_cols":13,"rows_kept":15,"cut":false,"hidden":false,"merged":[[3,1,3,3],[4,1,4,3]]}
[null,null,null,null,null,null,null,null,null,null,null,null,"ver 200223"]
[]
[]
[null,"METODSTÖD"]
[null,"VERKSAMHETSANALYS"]
[]
[null,null,"Myndighetens namn"]
[]
[null,null,"Avdelning"]
[]
[null,null,"Adress"]
[]
[null,null,"År för analysen"]
[]
[null,null,"Deltagare"]

{"sheet":"Uppstart","index":1,"n_rows":60,"n_cols":3,"rows_kept":60,"cut":false,"hidden":false,"merged":[]}
[null,"Uppstart"]
[]
[null,null,"Vad har vi för risker i verksamheten, har vi några?"]
[null,null,"Vad skulle dessa risker kunna leda till? "]
[null,null,"Är vår största risk verkligen vår största risk?"]
[null,null,"Vad har vi för riskkostnad?"]
[]
[null,null,"Detta är exempel på frågor som myndigheter ska veta enligt förordning "]
[null,null,"(1995:1300) om statliga myndigheters riskhantering."]
[]
[null,null,"Kammarkollegiets metodstöd är ett verktyg som i steg ett, genom"]
[null,null,"konkreta frågor, hjälper myndigheten att identifiera eventuella brister"]
[null,null,"i verksamheten som kan leda till risk för skada eller förlust. "]
[null,null,"I steg två värderar myndigheten de risker som identifierats i steg ett. "]
[null,null,"Användaren ges en samlad bild över myndighetens eventuella risker"]
[null,null,"samt den värderade risknivån. Användaren har därefter möjlighet att"]
[null,null,"behandla riskerna genom att utse riskägare och fastställa tidsplan för"]
[null,null,"åtgärd."]
[]
[null,null,"Verktyget behandlar följande 22 ”riskområden”: Rutiner och styrning,"]
[null,null,"Organisation, Riskkostnad, Information, Person, Skalskydd, Utrymning,"]
[null,null,"Brand, El, Vatten, IT, Fordon, Restvärde, Tillbudsrapportering, "]
[null,null,"Försörjningssystem, Fastighet, Ordning och reda, Värdefull egendom, "]
[null,null,"Ansvar, Farligt gods, Kontinuitetsplanering, Laboratoriemiljö. "]
[]
[null,null,"Arbetsgrupp för genomförande av analys anpassas efter verksamhetens "]
[null,null,"förutsättningar. Exempelvis: Ekonomi, HR, fastighet, säkerhet, IT samt"]
[null,null,"personer med annan specialistkompetens."]
[]
[null,null,"Inledningsvis bör arbetsgruppen fundera på följande frågor:"]
[]
[null,"-","Vilka är myndighetens framgångsfaktorer?"]
[null,"-","Vilka är myndighetens allvarligaste risker?"]
[null,"-","Hur motverkar man risken för korruption inom myndigheten?"]
[null,"-","Vad är det som ej får hända?"]
[null,"-","Vad är mest angeläget att skydda?"]
[null,"-","Vilka avbrottstider kan accepteras för respektive process?"]
[null,"-","Vilka tillbud har inträffat i verksamheten?"]
[null,"-","Vilka skador har inträffat i verksamheten?"]
[null,"-","Hur stor skadekostnad har myndigheten möjlighet att hantera?"]
[null,"-","Finns extern verksamhet i omgivningen som kan påverka myndigheten?"]
[null,"-","Vilken kunskap och information behövs för hantering av risker inom "]
[null,null,"myndigheten?"]
[null,"-","Hur kommuniceras kunskap och information om risker till "]
[null,null,"verksamheten?"]
[null,"-","Hur nyttjar verksamheten kommunicerad kunskap och information om"]
[null,null,"risker?"]
[null,"-","Är det lätt att kommunicera negativ information till högre chefer och "]
[null,null,"ledning?"]
[null,"-","Finns det värderingar i myndigheten som försvårar "]
[null,null,"riskhanteringsarbetet?"]
[null,"-","Är det skillnad på inställning till riskhanteringsarbete inom "]
[null,null,"myndigheten?"]
[null,"-","Är ledningen medveten om myndighetens största risker?"]
[null,"-","Hur fattas beslut om riskhantering inom myndigheten?"]
[null,"-","Hur ser ansvarsfördelningen för riskhanteringsarbete ut?"]
[null,"-","Är organisationsform och riskhantering i harmoni?"]
[null,"-","Finns behov av omvärldsbevakning?"]
[null,"-","Är den gemensamma värdegrunden för de statsanställda, S2013.011 känd"]
[null,null,"inom myndigheten?"]

{"sheet":"Rutiner och styrning","index":2,"n_rows":23,"n_cols":19,"rows_kept":23,"cut":false,"hidden":false,"merged":[]}
[null,null,"Rutiner och styrning",null,null,null,null,null,null,null,null,null,23]
[]
[null,null,"Mål- och styrdokument","Ja","Nej","Ej aktuell"]
[null,{"$f":"\"1\"","v":"1"},"Finns policy för myndighetens riskhanteringsarbete?",null,null,null,null,null,null,null,null,null,1,2,null,null,null,"N","Policy för riskhanteringsarbetet saknas"]
[null,{"$f":"\"1.1\"","v":"1.1"},"Är policy uppdaterad?",null,null,null,null,null,null,null,null,null,2,null,null,null,null,"N","Policy för myndighetens riskhanteringsarbete är ej uppdaterad"]
[null,{"$f":"\"2\"","v":"2"},"Finns målsättningar för riskhanteringsarbete?",null,null,null,null,null,null,null,null,null,3,null,null,null,null,"N","Målsättningar för riskhanteringsarbetet saknas"]
[null,{"$f":"\"3\"","v":"3"},"Är riskhanteringsarbetet en del av verksamhetsplaneringen?",null,null,null,null,null,null,null,null,null,4,null,null,null,null,"N","Riskhanteringsarbetet är ej en del av verksamhetsplaneringen"]
[]
[null,null,"Lag, förordning och andra kravställare","Ja","Nej","Ej aktuell"]
[null,{"$f":"\"4\"","v":"4"},"Är lagar, förordningar och andra kravställare gällande riskanalys kända av myndigheten?",null,null,null,null,null,null,null,null,null,5,null,null,null,null,"N","Kravställare gällande riskanalys är ej identifierad"]
[null,{"$f":"\"5\"","v":"5"},"Följs ändringar i lagar och förordningar upp?",null,null,null,null,null,null,null,null,null,6,null,null,null,null,"N","Ändringar i lagar och förordningar följs ej upp"]
[null,{"$f":"\"6\"","v":"6"},"Har Kammarkollegiet ställt särskilda skyddskrav i någon av myndighetens tecknade försäkringar?",null,null,null,null,null,null,null,null,null,7,8]
[null,{"$f":"\"6.1\"","v":"6.1"},"Är skyddskrav uppfyllda?",null,null,null,null,null,null,null,null,null,8,null,null,null,null,"N","Särskilda skyddskrav i någon av myndighetens försäkringar uppfylls ej"]
[]
[null,null,"Genomförande","Ja","Nej","Ej aktuell"]
[null,{"$f":"\"7\"","v":"7"},"Drivs riskhanteringsarbetet systematiskt?",null,null,null,null,null,null,null,null,null,9,null,null,null,null,"N","Riskhanteringsarbetet drivs ej systematiskt"]
[]
[null,null,"Samordning av områden","Ja","Nej","Ej aktuell"]
[null,{"$f":"\"8\"","v":"8"},"Samordnas alla delar inom riskhanteringsarbetet?",null,null,null,null,null,null,null,null,null,10,null,null,null,null,"N","Riskhanteringsarbetet samordnas ej"]
[]
[null,null,"Uppföljning","Ja","Nej","Ej aktuell"]
[null,{"$f":"\"9\"","v":"9"},"Följs riskhanteringsarbetet upp?",null,null,null,null,null,null,null,null,null,11,null,null,null,null,"N","Riskhanteringsarbetet följs ej upp"]
[null,{"$f":"\"10\"","v":"10"},"Utvärderas riskhanteringsarbetet?",null,null,null,null,null,null,null,null,null,12,null,null,null,null,"N","Riskhanteringsarbetet utvärderas ej"]

{"sheet":"Organisation","index":3,"n_rows":7,"n_cols":19,"rows_kept":7,"cut":false,"hidden":false,"merged":[]}
[null,null,"Organisation",null,null,null,null,null,null,null,null,null,7]
[]
[null,null,null,"Ja","Nej","Ej aktuell"]
[null,{"$f":"\"1\"","v":"1"},"Är riskhanteringsarbetet etablerad i organisationen?",null,null,null,null,null,null,null,null,null,13,"14 15",null,null,null,"N","Riskhanteringsarbetet är ej etablerad i organisationen"]
[null,{"$f":"\"1.1\"","v":"1.1"},"Finns organisatoriska svårigheter för riskhanteringsarbete?",null,null,null,null,null,null,null,null,null,14,null,null,null,null,"J","Organisatoriska svårigheter finns för riskhanteringsarbete"]
[null,{"$f":"\"1.2\"","v":"1.2"},"Är organisationens inställning positiv till riskhanteringsarbete?",null,null,null,null,null,null,null,null,null,15,null,null,null,null,"N","Organisationens inställning till riskhanteringsarbete är ej positiv"]
[null,{"$f":"\"2\"","v":"2"},"Har säkerhetsansvarig relevant mandat för beslut?",null,null,null,null,null,null,null,null,null,16,null,null,null,null,"N","Säkerhetsansvarig har ej relevant mandat för beslut"]

{"sheet":"Riskkostnad","index":4,"n_rows":7,"n_cols":19,"rows_kept":7,"cut":false,"hidden":false,"merged":[]}
[null,null,"Riskkostnad",null,null,null,null,null,null,null,null,null,7]
[]
[null,null,null,"Ja","Nej","Ej aktuell"]
[null,{"$f":"\"1\"","v":"1"},"Är myndighetens riskkostnad beräknad?",null,null,null,null,null,null,null,null,null,17,"18 19",null,null,null,"N","Myndighetens riskkostnad är ej beräknad"]
[null,{"$f":"\"1.1\"","v":"1.1"},"Är beräkning av riskkostnad uppdaterad?",null,null,null,null,null,null,null,null,null,18,null,null,null,null,"N","Den beräknade riskkostnaden är ej uppdaterad"]
[null,{"$f":"\"1.2\"","v":"1.2"},"Är beräkning av riskkostnad del av verksamhetsplaneringen?",null,null,null,null,null,null,null,null,null,19,null,20,null,null,"N"]
[null,{"$f":"\"1.2.1\"","v":"1.2.1"},"Säkerställs det på annat sätt att riskkostnaden beräknas?",null,null,null,null,null,null,null,null,null,20,null,null,null,null,"N","Beräkning av riskkostnad är ej säkerställd"]

{"sheet":"Information","index":5,"n_rows":75,"n_cols":19,"rows_kept":75,"cut":false,"hidden":false,"merged":[]}
[null,null,"Information",null,null,null,null,null,null,null,null,null,75]
[]
[null,null,null,"Ja","Nej","Ej aktuell"]
[null,{"$f":"\"1\"","v":"1"},"Finns informationssäkerhetsplan för myndigheten?",null,null,null,null,null,null,null,null,null,21,null,null,null,null,"N","Informationssäkerhetsplan saknas"]
[]
[null,null,"Allmän handling/Personuppgifter","Ja","Nej","Ej aktuell"]
[null,{"$f":"\"2\"","v":"2"},"Behandlas personuppgift enligt Dataskyddsförordning GDPR?",null,null,null,null,null,null,null,null,null,22,null,null,null,null,"N","Personuppgift behandlas ej enligt Dataskyddsförordningen GDPR"]
[null,{"$f":"\"3\"","v":"3"},"Har ett datasyddsombud utsetts?",null,null,null,null,null,null,null,null,null,23,"24 25",null,null,null,"N","Dataskyddsombud  har ej utsetts"]
[null,{"$f":"\"3.1\"","v":"3.1"},"Har anmälan gjorts till Integritetsskyddsmyndigheten?",null,null,null,null,null,null,null,null,null,24,null,null,null,null,"N","Myndigheten har ej anmält dataskyddsombud till Integritetsskyddsmyndigheten"]
[null,{"$f":"\"3.2\"","v":"3.2"},"Har dataskyddombudet relevant kunskap om GDPR?",null,null,null,null,null,null,null,null,null,25,null,null,null,null,"N","Dataskyddsombudet har ej relevant kunskap om GDPR"]
[null,{"$f":"\"4\"","v":"4"},"Finns ett personuppgiftsansvarig?",null,null,null,null,null,null,null,null,null,26,27]
[null,{"$f":"\"4.1\"","v":"4.1"},"Har personuppgiftsansvarig tillräcklig kunskap för uppgiften?",null,null,null,null,null,null,null,null,null,27,null,null,null,null,"N","Personuppgiftsansvarig har ej tillräcklig kunskap för uppgiften"]
[null,{"$f":"\"5\"","v":"5"},"Är regler för utlämnande av personuppgift till tredje land kända?",null,null,null,null,null,null,null,null,null,28,null,null,null,null,"N","Regler för utlämnande av personuppgift till tredje land är ej kända"]
[]
[null,null,"Allmän handling/Diarium","Ja","Nej","Ej aktuell"]
[null,{"$f":"\"6\"","v":"6"},"Är ansvarig för diariet utsedd?",null,null,null,null,null,null,null,null,null,29,null,null,null,null,"N","Ansvarig för diariet är ej utsedd"]
[null,{"$f":"\"7\"","v":"7"},"Finns rutin för begäran och utlämning av allmän handling?",null,null,null,null,null,null,null,null,null,30,null,null,null,null,"N","Rutin för begäran och utlämning av allmän handling saknas"]
[null,{"$f":"\"8\"","v":"8"},"Finns rutin för e-posthantering?",null,null,null,null,null,null,null,null,null,31,null,null,null,null,"N","Rutin för e-posthantering saknas"]
[]
[null,null,"Allmän handling/Sekretess","Ja","Nej","Ej aktuell"]
[null,{"$f":"\"9\"","v":"9"},"Finns information som omfattas av sekretess enligt Offentlighets- och sekretesslagen?",null,null,null,null,null,null,null,null,null,32,"33 34 35 36"]
[null,{"$f":"\"9.1\"","v":"9.1"},"Har berörd personal relevant utbildning i Offentlighets- och sekretesslagen?",null,null,null,null,null,null,null,null,null,33,null,null,null,null,"N","Berörd personal har ej relevant utbildning i Offentlighets- och sekretesslagen"]
[null,{"$f":"\"9.2\"","v":"9.2"},"Finns rutin gällande förvaring av sekretessbelagd handling?",null,null,null,null,null,null,null,null,null,34,null,null,null,null,"N","Rutin gällande förvaring av sekretessbelagd handling saknas"]
[null,{"$f":"\"9.3\"","v":"9.3"},"Finns diarierutin gällande hantering av sekretessbelagd handling?",null,null,null,null,null,null,null,null,null,35,null,null,null,null,"N","Diarierutin gällande hantering av sekretessbelagd handling saknas"]
[null,{"$f":"\"9.4\"","v":"9.4"},"Genomförs sekretessprövning då sekretessbelagd allmän handling begärs ut?",null,null,null,null,null,null,null,null,null,36,null,null,null,null,"N","Sekretessprövning genomförs ej då sekretessbelagd allmän handling begärs ut"]
[]
[null,null,"Allmän handling/Digital lagring","Ja","Nej","Ej aktuell"]
[null,{"$f":"\"10\"","v":"10"},"Finns riktlinjer för lagring digitalt?",null,null,null,null,null,null,null,null,null,37,null,null,null,null,"N","Riktlinjer för lagring digitalt saknas"]
[]
[null,null,"Allmän handling/Arkiv","Ja","Nej","Ej aktuell"]
[null,{"$f":"\"11\"","v":"11"},"Är arkivansvarig utsedd?",null,null,null,null,null,null,null,null,null,38,null,null,null,null,"N","Arkivansvarig är ej utsedd"]
[null,{"$f":"\"12\"","v":"12"},"Finns arkivredovisning?",null,null,null,null,null,null,null,null,null,39,null,null,null,null,"N","Arkivredovisning saknas"]
[null,{"$f":"\"13\"","v":"13"},"Är arkiv låst med nyckel?",null,null,null,null,null,null,null,null,null,40,41]
[null,{"$f":"\"13.1\"","v":"13.1"},"Förvaras nyckel på säkert sätt?",null,null,null,null,null,null,null,null,null,41,null,null,null,null,"N","Nyckel till arkiv förvaras ej på säkert sätt"]
[null,{"$f":"\"14\"","v":"14"},"Motsvarar arkivets skydd handlingars sekretessnivå?",null,null,null,null,null,null,null,null,null,42,null,null,null,null,"N","Arkivets skydd motsvarar ej handlingars sekretessnivå"]
[null,{"$f":"\"15\"","v":"15"},"Finns automatiskt brandlarm i arkiv?",null,null,null,null,null,null,null,null,null,43,null,null,null,null,"N","Automatiskt brandlarm saknas i arkiv"]
[null,{"$f":"\"16\"","v":"16"},"Finns automatisk branddörrstängning på arkivdörr?",null,null,null,null,null,null,null,null,null,44,null,null,null,null,"N","Automatisk branddörrstängning saknas på arkivdörr"]
[null,{"$f":"\"17\"","v":"17"},"Används arkiv till annan förvaring än arkivmaterial?",null,null,null,null,null,null,null,null,null,45,null,null,null,null,"J","Arkiv används till annan förvaring än arkivmaterial"]
[null,{"$f":"\"18\"","v":"18"},"Finns annan elektrisk installation än den fasta elektriska installation som är nödvändig för arkivlokals drift?",null,null,null,null,null,null,null,null,null,46,null,null,null,null,"J","Elektriska installationer som ej är nödvändig för arkivs drift finns i arkiv"]
[null,{"$f":"\"19\"","v":"19"},"Finns automatiskt brandsläcksystem?",null,null,null,null,null,null,null,null,null,47,48,49]
[null,{"$f":"\"19.1\"","v":"19.1"},"Är typ av släcksystem ett medvetet val?",null,null,null,null,null,null,null,null,null,48,null,null,null,null,"N","Typ av brandsläcksystem är ej ett medvetet val"]
[null,{"$f":"\"19.2\"","v":"19.2"},"Är detta ett medvetet val?",null,null,null,null,null,null,null,null,null,49,null,null,null,null,"N","Avsaknad av automatiskt brandsläcksystem är ej ett medvetet val"]
[null,{"$f":"\"20\"","v":"20"},"Är belysning i arkiv av kapslad typ?",null,null,null,null,null,null,null,null,null,50,null,null,null,null,"N","Belysning i arkiv är ej av kapslad typ"]
[null,{"$f":"\"21\"","v":"21"},"Finns möjlighet att bryta ström till arkiv från utsida?",null,null,null,null,null,null,null,null,null,51,null,null,null,null,"N","Möjlighet att bryta ström till arkiv från utsida saknas"]
[null,{"$f":"\"22\"","v":"22"},"Förvaras arkivmaterial direkt på golv?",null,null,null,null,null,null,null,null,null,52,null,null,null,null,"J","Arkivmaterial förvaras direkt på golv"]
[null,{"$f":"\"23\"","v":"23"},"Är arkiv egen brandcell?",null,null,null,null,null,null,null,null,null,53,null,null,null,null,"N","Arkiv är ej egen brandcell"]
[null,{"$f":"\"24\"","v":"24"},"Var senaste inspektionsrapport från Riksarkivets inspektion fri från förelägganden?",null,null,null,null,null,null,null,null,null,54,null,55]
[null,{"$f":"\"24.1\"","v":"24.1"},"Har brist i inspektionsrapport åtgärdats?",null,null,null,null,null,null,null,null,null,55,null,null,null,null,"N","Brist från Riksarkivets inspektion är ej åtgärdad"]
[]
[null,null,"Informationsklassificering","Ja","Nej","Ej aktuell"]
[null,{"$f":"\"25\"","v":"25"},"Har eventuellt behov av informationsklassificering analyserats?",null,null,null,null,null,null,null,null,null,56,57,null,null,null,"N","Eventuellt behov av informationsklassificering har ej analyserats"]
[null,{"$f":"\"25.1\"","v":"25.1"},"Finns behov av informationsklassificering?",null,null,null,null,null,null,null,null,null,57,58]
[null,{"$f":"\"25.1.1\"","v":"25.1.1"},"Har informationsklassificering genomförts?",null,null,null,null,null,null,null,null,null,58,null,null,null,null,"N","Informationsklassificering har ej genomförts"]
[]
[null,null,"Intern och extern informatör","Ja","Nej","Ej aktuell"]
[null,{"$f":"\"26\"","v":"26"},"Finns person utsedd för kontakt med media?",null,null,null,null,null,null,null,null,null,59,null,null,null,null,"N","Utsedd person för kontakt med media saknas"]
[]
[null,null,"Upphandling","Ja","Nej","Ej aktuell"]
[null,{"$f":"\"27\"","v":"27"},"Skyddas fysiska upphandlingsdokument mot obehöriga?",null,null,null,null,null,null,null,null,null,60,null,null,null,null,"N","Fysiska upphandlingsdokument skyddas ej mot obehöriga"]
[null,{"$f":"\"28\"","v":"28"},"Skyddas digitala upphandlingsdokument mot obehöriga?",null,null,null,null,null,null,null,null,null,61,null,null,null,null,"N","Digitala upphandlingsdokument skyddas ej mot obehöriga"]
[null,{"$f":"\"29\"","v":"29"},"Skyddas fysiska upphandlingsdokument mot brand?",null,null,null,null,null,null,null,null,null,62,null,null,null,null,"N","Fysiska upphandlingsdokument skyddas ej mot brand"]
[null,{"$f":"\"30\"","v":"30"},"Skyddas digitala upphandlingsdokument mot brand?",null,null,null,null,null,null,null,null,null,63,null,null,null,null,"N","Digitala upphandlingsdokument skyddas ej mot brand"]
[null,{"$f":"\"31\"","v":"31"},"Skyddas fysiska upphandlingsdokument mot vatten?",null,null,null,null,null,null,null,null,null,64,null,null,null,null,"N","Fysiska upphandlingsdokument skyddas ej mot vatten"]
[null,{"$f":"\"32\"","v":"32"},"Skyddas digitala upphandlingsdokument mot vatten?",null,null,null,null,null,null,null,null,null,65,null,null,null,null,"N","Digitala upphandlingsdokument skyddas ej mot vatten"]
[]
[null,null,"Informationssystem","Ja","Nej","Ej aktuell"]
[null,{"$f":"\"33\"","v":"33"},"Är myndighetens informationssystem kartlagda?",null,null,null,null,null,null,null,null,null,66,null,null,null,null,"N","Myndighetens informationssystem är ej kartlagda"]
[null,{"$f":"\"34\"","v":"34"},"Finns rutin för användande av informationssystem?",null,null,null,null,null,null,null,null,null,67,null,null,null,null,"N","Rutin för användande av informationssystem saknas"]
[null,{"$f":"\"35\"","v":"35"},"Är eventuellt fel i data som kan orsaka stor skada kartlagd?",null,null,null,null,null,null,null,null,null,68,null,null,null,null,"N","Eventuellt fel i data som kan orsaka stor skada är ej kartlagd"]
[]
[null,null,"Utbildning","Ja","Nej","Ej aktuell"]
[null,{"$f":"\"36\"","v":"36"},"Har personal genomgått utbildning i informationssäkerhet?",null,null,null,null,null,null,null,null,null,69,null,null,null,null,"N","Personal har ej genomgått utbildning i informationssäkerhet"]
[]
[null,null,"Uppföljning","Ja","Nej","Ej aktuell"]
[null,{"$f":"\"37\"","v":"37"},"Följs interna riktlinjer för informationshantering?",null,null,null,null,null,null,null,null,null,70,null,null,null,null,"N","Interna riktlinjer för informationshantering följs ej"]

{"sheet":"Person","index":6,"n_rows":93,"n_cols":19,"rows_kept":93,"cut":false,"hidden":false,"merged":[]}
[null,null,"Person",null,null,null,null,null,null,null,null,null,93]
[]
[null,null,"Tjänsteresa","Ja","Nej","Ej aktuell"]
[null,{"$f":"\"1\"","v":"1"},"Finns policy gällande val av färdmedel vid tjänsteresa?",null,null,null,null,null,null,null,null,null,71,null,null,null,null,"N","Policy gällande val av färdmedel vid tjänsteresa saknas"]
[null,{"$f":"\"2\"","v":"2"},"Genomför myndighetens personal tjänsteresa med hyrbil?",null,null,null,null,null,null,null,null,null,72,"73 74"]
[null,{"$f":"\"2.1\"","v":"2.1"},"Finns policy gällande typ av fordon?",null,null,null,null,null,null,null,null,null,73,null,null,null,null,"N","Policy gällande typ av fordon vid tjänsteresa med hyrbil saknas"]
[null,{"$f":"\"2.2\"","v":"2.2"},"Finns policy gällande typ av vinterdäck?",null,null,null,null,null,null,null,null,null,74,null,null,null,null,"N","Policy gällande typ av vinterdäck på fordon vid tjänsteresa med hyrbil saknas"]
[null,{"$f":"\"3\"","v":"3"},"Får privat fordon användas i tjänsten?",null,null,null,null,null,null,null,null,null,75,76]
[null,{"$f":"\"3.1\"","v":"3.1"},"Finns riktlinjer för användandet?",null,null,null,null,null,null,null,null,null,76,null,null,null,null,"N","Riktlinjer för användande av privat fordon i tjänsten saknas"]
[null,{"$f":"\"4\"","v":"4"},"Genomför myndighetens personal utrikes tjänsteresa?",null,null,null,null,null,null,null,null,null,77,"78 79 80"]
[null,{"$f":"\"4.1\"","v":"4.1"},"Finns rutin för utrikes tjänsteresa?",null,null,null,null,null,null,null,null,null,78,null,null,null,null,"N","Rutin för utrikes tjänsteresa saknas"]
[null,{"$f":"\"4.2\"","v":"4.2"},"Finns beredskapsorganisation för eventuell händelse under utrikes tjänsteresa?",null,null,null,null,null,null,null,null,null,79,null,null,null,null,"N","Beredskapsorganisation för eventuell händelse under utrikes tjänsteresa saknas"]
[null,{"$f":"\"4.3\"","v":"4.3"},"Förbereds personal inför avresa?",null,null,null,null,null,null,null,null,null,80,null,null,null,null,"N","Förberedelse av personal inför utrikes tjänsteresa saknas"]
[null,{"$f":"\"5\"","v":"5"},"Finns rutin för hantering av värdefull egendom under tjänsteresa?",null,null,null,null,null,null,null,null,null,81,null,null,null,null,"N","Rutin för hantering av värdefull egendom under tjänsteresa saknas"]
[]
[null,null,"Nyckelperson","Ja","Nej","Ej aktuell"]
[null,{"$f":"\"6\"","v":"6"},"Är eventuell nyckelperson i verksamheten kartlagd?",null,null,null,null,null,null,null,null,null,82,"83 84",null,null,null,"N","Eventuell nyckelperson är ej identifierad"]
[null,{"$f":"\"6.1\"","v":"6.1"},"Kan nyckelpersons kompetens överföras till verksamheten?",null,null,null,null,null,null,null,null,null,83,null,null,null,null,"N","Nyckelpersons kompetens kan ej överföras till verksamheten"]
[null,{"$f":"\"6.2\"","v":"6.2"},"Kan antalet nyckelpersoner minskas?",null,null,null,null,null,null,null,null,null,84,null,null,null,null,"N","Antalet nyckelpersoner kan ej minskas"]
[]
[null,null,"Brott/Korruption","Ja","Nej","Ej aktuell"]
[null,{"$f":"\"7\"","v":"7"},"Finns rutin för agerande vid misstanke mot personal?",null,null,null,null,null,null,null,null,null,85,null,null,null,null,"N","Rutin för agerande vid misstanke mot personal om brott/korruption saknas"]
[]
[null,null,"Missbruk","Ja","Nej","Ej aktuell"]
[null,{"$f":"\"8\"","v":"8"},"Finns rutin för agerande vid misstanke mot personal?",null,null,null,null,null,null,null,null,null,86,null,null,null,null,"N","Rutin för agerande vid misstanke mot personal om missbruk saknas"]
[null,{"$f":"\"9\"","v":"9"},"Finns stöd att få genom företagshälsovård?",null,null,null,null,null,null,null,null,null,87,null,null,null,null,"N","Stöd genom företagshälsovård finns ej"]
[]
[null,null,"Arbetsmiljö","Ja","Nej","Ej aktuell"]
[null,{"$f":"\"10\"","v":"10"},"Har myndighetens personal tillfredställande arbetsmiljö?",null,null,null,null,null,null,null,null,null,88,null,89,null,null,"N","Personalens arbetsmiljö är ej tillfredställande"]
[null,{"$f":"\"10.1\"","v":"10.1"},"Har förbättringsåtgärd diskuterats?",null,null,null,null,null,null,null,null,null,89,null,null,null,null,"N","Förbättringsåtgärd gällande personalens arbetsmiljö har ej diskuterats"]
[null,{"$f":"\"11\"","v":"11"},"Förekommer ensamarbete?",null,null,null,null,null,null,null,null,null,90,null,null,null,null,"J","Ensamarbete förekommer"]
[null,{"$f":"\"12\"","v":"12"},"Finns någon särskild utsatt personalgrupp på myndigheten gällande hot?",null,null,null,null,null,null,null,null,null,91,92]
[null,{"$f":"\"12.1\"","v":"12.1"},"Är förebyggande åtgärd vidtagen?",null,null,null,null,null,null,null,null,null,92,null,null,null,null,"N","Förebyggande åtgärd är ej vidtagen för skydd av särskilt utsatt personalgrupp"]
[null,{"$f":"\"13\"","v":"13"},"Finns behov av överfallslarm för personal?",null,null,null,null,null,null,null,null,null,93,94]
[null,{"$f":"\"13.1\"","v":"13.1"},"Finns överfallslarm?",null,null,null,null,null,null,null,null,null,94,null,null,null,null,"N","Överfallslarm saknas där behov finns"]
[]
[null,null,"Extern arbetsplats","Ja","Nej","Ej aktuell"]
[null,{"$f":"\"14\"","v":"14"},"Tillåts arbete vid extern kontorsarbetsplats?",null,null,null,null,null,null,null,null,null,95,96]
[null,{"$f":"\"14.1\"","v":"14.1"},"Finns riktlinjer för arbete vid extern kontorsarbetsplats?",null,null,null,null,null,null,null,null,null,96,97,null,null,null,"N","Riktlinjer för arbete vid extern kontorsarbetsplats saknas"]
[null,{"$f":"\"14.1.1\"","v":"14.1.1"},"Är riktlinjer dokumenterade?",null,null,null,null,null,null,null,null,null,97,null,null,null,null,"N","Dokumenterade riktlinjer för arbete vid extern kontorsarbetsplats saknas"]
[null,{"$f":"\"15\"","v":"15"},"Har myndigheten verksamhet som bedrivs ute i fält?",null,null,null,null,null,null,null,null,null,98,"99 101"]
[null,{"$f":"\"15.1\"","v":"15.1"},"Finns riktlinjer för arbete ute i fält?",null,null,null,null,null,null,null,null,null,99,100,null,null,null,"N","Riktlinjer för arbete ute i fält saknas"]
[null,{"$f":"\"15.1.1\"","v":"15.1.1"},"Är riktlinjer dokumenterade?",null,null,null,null,null,null,null,null,null,100,null,null,null,null,"N","Dokumenterade riktlinjer för arbete ute i fält saknas"]
[null,{"$f":"\"15.2\"","v":"15.2"},"Är förebyggande åtgärd vidtagen?",null,null,null,null,null,null,null,null,null,101,null,null,null,null,"N","Förebyggande åtgärd är ej vidtagen för skydd av verksamhet ute i fält"]
[]
[null,null,"Första hjälpen","Ja","Nej","Ej aktuell"]
[null,{"$f":"\"16\"","v":"16"},"Finns första hjälpen-utrustning?",null,null,null,null,null,null,null,null,null,102,"103 104 105 106",null,null,null,"N","Första hjälpen-utrustning saknas"]
[null,{"$f":"\"16.1\"","v":"16.1"},"Är valet av utrustningen gjord efter riskbedömning?",null,null,null,null,null,null,null,null,null,103,null,null,null,null,"N","Första hjälpen-utrustning är ej vald efter riskbedömning"]
[null,{"$f":"\"16.2\"","v":"16.2"},"Är utrustnings placering anpassad för snabb första hjälpen-insats?",null,null,null,null,null,null,null,null,null,104,null,null,null,null,"N","Placering av utrustning för första hjälpen möjliggör ej snabb insats"]
[null,{"$f":"\"16.3\"","v":"16.3"},"Är utrustning tydligt utmärkt?",null,null,null,null,null,null,null,null,null,105,null,null,null,null,"N","Första hjälpen-utrustning är ej tydligt utmärkt"]
[null,{"$f":"\"16.4\"","v":"16.4"},"Finns rutin för regelbunden kontroll av utrustning?",null,null,null,null,null,null,null,null,null,106,null,null,null,null,"N","Rutin för regelbunden kontroll av första hjälpen-utrustning saknas"]
[null,{"$f":"\"17\"","v":"17"},"Är antalet personer som kan utföra första hjälpen tillfredställande?",null,null,null,null,null,null,null,null,null,107,null,null,null,null,"N","Antalet personer som kan utföra första hjälpen är ej tillfredställande"]
[null,{"$f":"\"18\"","v":"18"},"Finns tydlig information om var utrustning för första hjälpen kan hittas?",null,null,null,null,null,null,null,null,null,108,null,null,null,null,"N","Information om var första hjälpen-utrusting kan hittas är ej tydlig"]
[null,{"$f":"\"19\"","v":"19"},"Finns tydlig information om vilka som kan utföra första hjälpen?",null,null,null,null,null,null,null,null,null,109,null,null,null,null,"N","Information om vilka som kan utföra första hjälpen är ej tydlig"]
[]
[null,null,"Hjärt-lungräddning","Ja","Nej","Ej aktuell"]
[null,{"$f":"\"20\"","v":"20"},"Finns utrustning för hjärt- lungräddning?",null,null,null,null,null,null,null,null,null,110,"111 112 113",null,null,null,"N","Utrustning för hjärt- lungräddning saknas"]
[null,{"$f":"\"20.1\"","v":"20.1"},"Är utrustnings placering anpassad för snabb hjärt- lungräddning insats?",null,null,null,null,null,null,null,null,null,111,null,null,null,null,"N","Placering av utrustning för hjärt- lungräddning möjliggör ej snabb insats"]
[null,{"$f":"\"20.2\"","v":"20.2"},"Är utrustningen tydligt utmärkt?",null,null,null,null,null,null,null,null,null,112,null,null,null,null,"N","Utrustning för hjärt- lungräddning är ej tydligt utmärkt"]
[null,{"$f":"\"20.3\"","v":"20.3"},"Finns rutin för regelbunden kontroll av utrustningen?",null,null,null,null,null,null,null,null,null,113,null,null,null,null,"N","Rutin för regelbunden kontroll av utrustning för hjärt-lungräddning saknas"]
[null,{"$f":"\"21\"","v":"21"},"Är antalet personer som kan utföra hjärt-lungräddning tillfredställande?",null,null,null,null,null,null,null,null,null,114,null,null,null,null,"N","Antalet personer som kan utföra hjärt-lungräddning är ej tillfredställande"]
[null,{"$f":"\"22\"","v":"22"},"Finns tydlig information om var utrustning för hjärt-lungräddning kan hittas?",null,null,null,null,null,null,null,null,null,115,null,null,null,null,"N","Information om var utrustning för hjärt-lungräddning kan hittas är ej tydlig"]
[null,{"$f":"\"23\"","v":"23"},"Finns tydlig information om vilka som kan utföra hjärt-lungräddning?",null,null,null,null,null,null,null,null,null,116,null,null,null,null,"N","Information om vilka som kan ge hjärt-lungräddning är ej tydlig"]
[null,{"$f":"\"24\"","v":"24"},"Finns tydlig information om myndighetens besöksadress?",null,null,null,null,null,null,null,null,null,117,null,null,null,null,"N","Information om besöksadress är ej tydlig"]
[]
[null,null,"Studenter vid universitet och högskola","Ja","Nej","Ej aktuell"]
[null,{"$f":"\"25\"","v":"25"},"Har myndigheten inresande studenter?",null,null,null,null,null,null,null,null,null,118,"119 120 121"]
[null,{"$f":"\"25.1\"","v":"25.1"},"Finns rutin för introduktion?",null,null,null,null,null,null,null,null,null,119,null,null,null,null,"N","Rutin gällande introduktion för inresande studenter saknas"]
[null,{"$f":"\"25.2\"","v":"25.2"},"Finns beredskapsorganisation för eventuell händelse under studietiden?",null,null,null,null,null,null,null,null,null,120,null,null,null,null,"N","Beredskapsorganisation för inresande studenter vid eventuell händelse under studietiden saknas"]
[null,{"$f":"\"25.3\"","v":"25.3"},"Ses frågan om försäkringsskydd över innan studenters ankomst? ",null,null,null,null,null,null,null,null,null,121,null,null,null,null,"N","Frågan om försäkringsskydd för inresande studenter ses ej över innan ankomst"]
[null,{"$f":"\"26\"","v":"26"},"Har myndigheten utresande studenter?",null,null,null,null,null,null,null,null,null,122,"123 124 125 126 127"]
[null,{"$f":"\"26.1\"","v":"26.1"},"Finns rutin för resa till riskområde?",null,null,null,null,null,null,null,null,null,123,null,null,null,null,"N","Rutin gällande utresande studenter till riskområde saknas"]
[null,{"$f":"\"26.2\"","v":"26.2"},"Finns rutin för hantering av värdefull egendom?",null,null,null,null,null,null,null,null,null,124,null,null,null,null,"N","Rutin gällande hantering av värdefull egendom för utresande studenter saknas"]
[null,{"$f":"\"26.3\"","v":"26.3"},"Finns beredskapsorganisation för eventuell händelse under studietiden?",null,null,null,null,null,null,null,null,null,125,null,null,null,null,"N","Beredskapsorganisation för utresande studenter vid eventuell händelse under studietiden saknas"]
[null,{"$f":"\"26.4\"","v":"26.4"},"Förbereds student inför avresa?",null,null,null,null,null,null,null,null,null,126,null,null,null,null,"N","Studenter förbereds ej inför avresa"]
[null,{"$f":"\"26.5\"","v":"26.5"},"Ses frågan om försäkringsskydd över innan avresa?",null,null,null,null,null,null,null,null,null,127,null,null,null,null,"N","Frågan om försäkringsskydd för utresande studenter ses ej över innan avresa"]
[]
[null,null,"Utlandsstationerad personal","Ja","Nej","Ej aktuell"]
[null,{"$f":"\"27\"","v":"27"},"Har myndigheten personal stationerad i utlandet?",null,null,null,null,null,null,null,null,null,128,"129 130 131"]
[null,{"$f":"\"27.1\"","v":"27.1"},"Finns rutin under utlandsstationering?",null,null,null,null,null,null,null,null,null,129,null,null,null,null,"N","Rutin för utlandsstationering saknas"]
[null,{"$f":"\"27.2\"","v":"27.2"},"Finns beredskapsorganisation för eventuell händelse under utlandsstationering?",null,null,null,null,null,null,null,null,null,130,null,null,null,null,"N","Beredskapsorganisation för eventuell händelse under utlandsstationering saknas"]
[null,{"$f":"\"27.3\"","v":"27.3"},"Förbereds personal inför avresa?",null,null,null,null,null,null,null,null,null,131,null,null,null,null,"N","Förberedelse av personal inför utlandsstationering saknas"]
[]
[null,null,"Krisplan","Ja","Nej","Ej aktuell"]
[null,{"$f":"\"28\"","v":"28"},"Finns krisplan för myndigheten?",null,null,null,null,null,null,null,null,null,132,"133 134 136 137 138 139",null,null,null,"N","Krisplan saknas"]
[null,{"$f":"\"28.1\"","v":"28.1"},"Är krisplan uppdaterad?",null,null,null,null,null,null,null,null,null,133,null,null,null,null,"N","Krisplan är ej uppdaterad"]
[null,{"$f":"\"28.2\"","v":"28.2"},"Är krisplan dokumenterad?",null,null,null,null,null,null,null,null,null,134,135,null,null,null,"N","Krisplan är ej dokumenterad"]
[null,{"$f":"\"28.2.1\"","v":"28.2.1"},"Omfattas dokumentation av sekretess?",null,null,null,null,null,null,null,null,null,135,null,null,null,null,"N","Dokumenterad krisplan omfattas ej av sekretess"]
[null,{"$f":"\"28.3\"","v":"28.3"},"Finns ansvarig för krisplan utsedd?",null,null,null,null,null,null,null,null,null,136,null,null,null,null,"N","Ansvarig för krisplan är ej utsedd"]
[null,{"$f":"\"28.4\"","v":"28.4"},"Uppdateras krisplan systematiskt?",null,null,null,null,null,null,null,null,null,137,null,null,null,null,"N","Krisplan uppdateras ej systematiskt"]
[null,{"$f":"\"28.5\"","v":"28.5"},"Är krisplan känd i organisationen?",null,null,null,null,null,null,null,null,null,138,null,null,null,null,"N","Krisplan är ej känd i organisationen"]
[null,{"$f":"\"28.6\"","v":"28.6"},"Är krisplan övad tillsammans med personalen?",null,null,null,null,null,null,null,null,null,139,140,null,null,null,"N","Krisplan är ej övad tillsammans med personalen"]
[null,{"$f":"\"28.6.1\"","v":"28.6.1"},"Genomförs krisövning systematiskt?",null,null,null,null,null,null,null,null,null,140,null,null,null,null,"N","Krisövning genomförs ej systematiskt"]

{"sheet":"Skalskydd","index":7,"n_rows":51,"n_cols":19,"rows_kept":51,"cut":false,"hidden":false,"merged":[]}
[null,null,"Skalskydd",null,null,null,null,null,null,null,null,null,51]
[]
[null,null,"Väggar, golv och tak","Ja","Nej","Ej aktuell"]
[null,{"$f":"\"1\"","v":"1"},"Finns lokal i markplan?",null,null,null,null,null,null,null,null,null,141,"142 143"]
[null,{"$f":"\"1.1\"","v":"1.1"},"Är stöldbegärlig egendom synlig från utsida?",null,null,null,null,null,null,null,null,null,142,null,null,null,null,"J","Stöldbegärlig egendom i markplan är synlig från utsida"]
[null,{"$f":"\"1.2\"","v":"1.2"},"Finns öppningsbara fönster i markplan?",null,null,null,null,null,null,null,null,null,143,null,null,null,null,"J","Öppningsbara fönster finns i markplan"]
[null,{"$f":"\"2\"","v":"2"},"Finns rutin för stängning av fönster?",null,null,null,null,null,null,null,null,null,144,null,null,null,null,"N","Rutin för stängning av fönster saknas"]
[]
[null,null,"Passerkontroll","Ja","Nej","Ej aktuell"]
[null,{"$f":"\"3\"","v":"3"},"Finns passersystem?",null,null,null,null,null,null,null,null,null,145,"146 148 149 150"]
[null,{"$f":"\"3.1\"","v":"3.1"},"Är alla dörrar i skalskyddet kopplade till passersystemet?",null,null,null,null,null,null,null,null,null,146,null,147]
[null,{"$f":"\"3.1.1\"","v":"3.1.1"},"Säkerställs det på annat sätt att alla dörrar i skalskyddet är stängda?",null,null,null,null,null,null,null,null,null,147,null,null,null,null,"N","Att dörrar i skalskyddet är stängda säkerställs ej"]
[null,{"$f":"\"3.2\"","v":"3.2"},"Finns rutin för kortkvittering?",null,null,null,null,null,null,null,null,null,148,null,null,null,null,"N","Rutin för kvittering av passerkort saknas"]
[null,{"$f":"\"3.3\"","v":"3.3"},"Finns utdelade aktiva passerkort som inte används?",null,null,null,null,null,null,null,null,null,149,null,null,null,null,"J","Utdelade passerkort som ej används är aktiva"]
[null,{"$f":"\"3.4\"","v":"3.4"},"Finns det behörighetsnivåer i passersystemet?",null,null,null,null,null,null,null,null,null,150,151]
[null,{"$f":"\"3.4.1\"","v":"3.4.1"},"Finns rutiner för uppdatering av behörighetsnivåer?",null,null,null,null,null,null,null,null,null,151,null,null,null,null,"N","Rutin för uppdatering av behörighetsnivåer saknas"]
[null,{"$f":"\"4\"","v":"4"},"Finns mekaniska nycklar till skalskyddet utdelade?",null,null,null,null,null,null,null,null,null,152,"153 154 155 156"]
[null,{"$f":"\"4.1\"","v":"4.1"},"Finns rutin för nyckelkvittering?",null,null,null,null,null,null,null,null,null,153,null,null,null,null,"N","Rutin för kvittering av mekanisk nyckel saknas"]
[null,{"$f":"\"4.2\"","v":"4.2"},"Är myndigheten medveten om antalet?",null,null,null,null,null,null,null,null,null,154,null,null,null,null,"N","Information om antal utdelade mekaniska nycklar till skalskyddet saknas"]
[null,{"$f":"\"4.3\"","v":"4.3"},"Är myndigheten medveten om vilka som har nycklar?",null,null,null,null,null,null,null,null,null,155,null,null,null,null,"N","Information om vilka personer som har mekaniska nycklar till skalskyddet saknas"]
[null,{"$f":"\"4.4\"","v":"4.4"},"Förvaras nycklar på säkert sätt?",null,null,null,null,null,null,null,null,null,156,null,null,null,null,"N","Mekaniska nycklar till skalskyddet förvaras ej på säkert sätt"]
[]
[null,null,"Inbrottslarm","Ja","Nej","Ej aktuell"]
[null,{"$f":"\"5\"","v":"5"},"Finns inbrottslarm i myndighetens alla lokaler?",null,null,null,null,null,null,null,null,null,157,"159 161 163 168 169",158]
[null,{"$f":"\"5.1\"","v":"5.1"},"Är detta ett medvetet val?",null,null,null,null,null,null,null,null,null,158,null,null,null,null,"N","Behov av inbrottslarm i myndighetens lokaler är ej analyserat"]
[null,{"$f":"\"5.2\"","v":"5.2"},"Omfattar inbrottslarmet myndighetens skalskydd?",null,null,null,null,null,null,null,null,null,159,null,160]
[null,{"$f":"\"5.2.1\"","v":"5.2.1"},"Är detta ett medvetet val?",null,null,null,null,null,null,null,null,null,160,null,null,null,null,"N","Behov av larm i skalskyddet är ej analyserat"]
[null,{"$f":"\"5.3\"","v":"5.3"},"Omfattar inbrottslarmet myndighetens lokal genom volymlarm?",null,null,null,null,null,null,null,null,null,161,null,162]
[null,{"$f":"\"5.3.1\"","v":"5.3.1"},"Är detta ett medvetet val?",null,null,null,null,null,null,null,null,null,162,null,null,null,null,"N","Behov av volymlarm är ej analyserat"]
[null,{"$f":"\"5.4\"","v":"5.4"},"Är larmöverföring kopplad till larmcentral?",null,null,null,null,null,null,null,null,null,163,"164 165 166",167]
[null,{"$f":"\"5.4.1\"","v":"5.4.1"},"Finns skriftligt avtal för mottagande av larm?",null,null,null,null,null,null,null,null,null,164,null,null,null,null,"N","Skriftligt avtal om mottagnade av larm saknas"]
[null,{"$f":"\"5.4.2\"","v":"5.4.2"},"Finns skriftligt avtal för åtgärd vid mottagande av larm?",null,null,null,null,null,null,null,null,null,165,null,null,null,null,"N","Skriftligt avtal om åtgärd vid mottagande av larm saknas"]
[null,{"$f":"\"5.4.3\"","v":"5.4.3"},"Är larmöverföring övervakad?",null,null,null,null,null,null,null,null,null,166,null,null,null,null,"N","Larmöverföring är ej övervakad"]
[null,{"$f":"\"5.4.4\"","v":"5.4.4"},"Är detta ett medvetet val?",null,null,null,null,null,null,null,null,null,167,null,null,null,null,"N","Behov av larmöverföring kopplad till larmcentral är ej analyserat"]
[null,{"$f":"\"5.5\"","v":"5.5"},"Finns rutin för hantering av inbrottslarmet?",null,null,null,null,null,null,null,null,null,168,null,null,null,null,"N","Rutin för hantering av inbrottslarmet saknas"]
[null,{"$f":"\"5.6\"","v":"5.6"},"Finns serviceavtal gällande inbrottslarm?",null,null,null,null,null,null,null,null,null,169,null,null,null,null,"N","Serviceavtal gällande inbrottslarm saknas"]
[]
[null,null,"Personell bevakning","Ja","Nej","Ej aktuell"]
[null,{"$f":"\"6\"","v":"6"},"Finns avtal med bevakningsbolag?",null,null,null,null,null,null,null,null,null,170,"171 173 174 175"]
[null,{"$f":"\"6.1\"","v":"6.1"},"Utförs ronderande bevakning hos myndigheten?",null,null,null,null,null,null,null,null,null,171,null,172]
[null,{"$f":"\"6.1.1\"","v":"6.1.1"},"Är detta ett mevdetet val?",null,null,null,null,null,null,null,null,null,172,null,null,null,null,"N","Behov av ronderande bevakning hos myndigheten är ej analyserat"]
[null,{"$f":"\"6.2\"","v":"6.2"},"Är bevakningsplan och instruktion aktuell?",null,null,null,null,null,null,null,null,null,173,null,null,null,null,"N","Bevakningsplan samt instruktion till bevakningsbolag är ej aktuell"]
[null,{"$f":"\"6.3\"","v":"6.3"},"Finns åtgärdsrutin vid larm?",null,null,null,null,null,null,null,null,null,174,null,null,null,null,"N","Åtgärdsrutin vid larm saknas för bevakningsbolag"]
[null,{"$f":"\"6.4\"","v":"6.4"},"Är insatstid identifierad?",null,null,null,null,null,null,null,null,null,175,null,null,null,null,"N","Insatstid för bevakningsbolag vid larm är ej identifierad"]
[]
[null,null,"Besöksmottagning/Entré/Reception","Ja","Nej","Ej aktuell"]
[null,{"$f":"\"7\"","v":"7"},"Finns tydlig besöksrutin?",null,null,null,null,null,null,null,null,null,176,null,null,null,null,"N","Tydlig besöksrutin saknas"]
[null,{"$f":"\"8\"","v":"8"},"Är myndighetens lokaler upplåsta för allmänheten? ",null,null,null,null,null,null,null,null,null,177,178]
[null,{"$f":"\"8.1\"","v":"8.1"},"Är en översyn gjord på hur externa personer kan röra sig i myndighetens lokaler?",null,null,null,null,null,null,null,null,null,178,null,null,null,null,"N","Översyn av hur externa personer kan röra sig i myndighetens lokaler ej genomförd"]
[null,{"$f":"\"9\"","v":"9"},"Finns det in- och utpasserade fordon på myndighetens område?",null,null,null,null,null,null,null,null,null,179,180]
[null,{"$f":"\"9.1\"","v":"9.1"},"Finns kontroll vid in- och utpassering?",null,null,null,null,null,null,null,null,null,180,null,null,null,null,"N","Kontroll vid in- och utpasserande av fordon saknas"]

{"sheet":"Utrymning","index":8,"n_rows":23,"n_cols":19,"rows_kept":23,"cut":false,"hidden":false,"merged":[]}
[null,null,"Utrymning",null,null,null,null,null,null,null,null,null,23]
[]
[null,null,null,"Ja","Nej","Ej aktuell"]
[null,{"$f":"\"1\"","v":"1"},"Finns myndighetskrav på utrymningslarm i myndighetens lokaler?",null,null,null,null,null,null,null,null,null,181,182]
[null,{"$f":"\"1.1\"","v":"1.1"},"Finns utrymningslarm i aktuell lokal?",null,null,null,null,null,null,null,null,null,182,183,null,null,null,"N","Utrymningslarm saknas i lokal som omfattas av myndighetskrav"]
[null,{"$f":"\"1.1.1\"","v":"1.1.1"},"Kontrolleras utrymningslarm systematiskt?",null,null,null,null,null,null,null,null,null,183,null,null,null,null,"N","Systematiskt kontroll av utrymningslarm saknas"]
[null,{"$f":"\"2\"","v":"2"},"Har myndigheten beaktat att personal och besökande kan ha nedsatt hörselförmåga?",null,null,null,null,null,null,null,null,null,184,null,null,null,null,"N","Hänsyn till personal och besökande med nedsatt hörselförmåga har ej tagits"]
[null,{"$f":"\"3\"","v":"3"},"Kontrolleras utrymningsväg systematiskt? ",null,null,null,null,null,null,null,null,null,185,null,null,null,null,"N","Utrymningsväg kontrolleras ej systematiskt"]
[null,{"$f":"\"4\"","v":"4"},"Finns nattlås på utrymningsdörr?",null,null,null,null,null,null,null,null,null,186,187]
[null,{"$f":"\"4.1\"","v":"4.1"},"Är nattlås kopplad till väsentlig funktion?",null,null,null,null,null,null,null,null,null,187,null,null,null,null,"N","Nattlås ej kopplad till väsentlig funktion"]
[null,{"$f":"\"5\"","v":"5"},"Finns möjlighet till återinrymning genom dörr som ej leder ut i det fria eller till ny brandcell?",null,null,null,null,null,null,null,null,null,188,null,null,null,null,"N","Möjlighet till återinrymning saknas"]
[null,{"$f":"\"6\"","v":"6"},"Genomförs utrymningsövning systematiskt?",null,null,null,null,null,null,null,null,null,189,190,null,null,null,"N","Utrymningsövning genomförs ej systematiskt"]
[null,{"$f":"\"6.1\"","v":"6.1"},"Utvärderas utrymningsövning?",null,null,null,null,null,null,null,null,null,190,null,null,null,null,"N","Utrymningsövning utvärderas ej"]
[null,{"$f":"\"7\"","v":"7"},"Uppfylls myndighetskrav gällande utrymningsskyltning?",null,null,null,null,null,null,null,null,null,191,null,null,null,null,"N","Utrymningsskyltning uppfyller ej myndighetskrav"]
[null,{"$f":"\"8\"","v":"8"},"Finns återsamlingsplats?",null,null,null,null,null,null,null,null,null,192,null,193]
[null,{"$f":"\"8.1\"","v":"8.1"},"Är det ett medvetet val?",null,null,null,null,null,null,null,null,null,193,null,null,null,null,"N","Behov av återsamlingsplats är ej analyserad"]
[null,{"$f":"\"9\"","v":"9"},"Finns tydlig ansvarsfördelning gällande drift och underhåll av utrymningslarm?",null,null,null,null,null,null,null,null,null,194,null,null,null,null,"N","Tydlig ansvarafördelning gällande drift och underhåll av utrymningslarm saknas"]
[null,{"$f":"\"10\"","v":"10"},"Får personal information om utrymning?",null,null,null,null,null,null,null,null,null,195,null,null,null,null,"N","Personal får ej information om utrymning"]
[null,{"$f":"\"11\"","v":"11"},"Finns lokal med begränsning på max antal personer i myndighetens lokaler?",null,null,null,null,null,null,null,null,null,196,"197 198"]
[null,{"$f":"\"11.1\"","v":"11.1"},"Är aktuell lokal känd?",null,null,null,null,null,null,null,null,null,197,null,null,null,null,"N","Lokal med begränsning på max antal personer är ej känd"]
[null,{"$f":"\"11.2\"","v":"11.2"},"Är aktuell lokal uppmärkt med skyltning för max antal?",null,null,null,null,null,null,null,null,null,198,null,null,null,null,"N","Lokal med begränsning på max antal personer är ej uppmärkt med skyltning för max antal"]
[null,{"$f":"\"12\"","v":"12"},"Finns utrymningsplaner?",null,null,null,null,null,null,null,null,null,199,200,null,null,null,"N","Utrymningsplaner saknas"]
[null,{"$f":"\"12.1\"","v":"12.1"},"Är utrymningsplaner uppdaterade?",null,null,null,null,null,null,null,null,null,200,null,null,null,null,"N","Utrymningsplaner är ej uppdaterade"]

{"sheet":"Brand","index":9,"n_rows":75,"n_cols":19,"rows_kept":75,"cut":false,"hidden":false,"merged":[]}
[null,null,"Brand",null,null,null,null,null,null,null,null,null,75]
[]
[null,null,null,"Ja","Nej","Ej aktuell"]
[null,{"$f":"\"1\"","v":"1"},"Finns ett fungerande systematiskt brandskyddsarbete?",null,null,null,null,null,null,null,null,null,201,null,null,null,null,"N","Ett fungerande systematiskt brandskyddsarbetet saknas"]
[null,{"$f":"\"2\"","v":"2"},"Finns gränsdragningslista mellan hyresgäst och fastighetsägare?",null,null,null,null,null,null,null,null,null,202,203,null,null,null,"N","Gränsdragningslista gällande brandskydd mellan hyresgäst och fastighetsägare saknas"]
[null,{"$f":"\"2.1\"","v":"2.1"},"Är gränsdragningslista uppdaterad?",null,null,null,null,null,null,null,null,null,203,null,null,null,null,"N","Gränsdragningslista gällande brandskydd är ej uppdaterad"]
[null,{"$f":"\"3\"","v":"3"},"Har räddningstjänsten behov av information om myndighetens lokaler vid en eventuell insats?",null,null,null,null,null,null,null,null,null,204,205]
[null,{"$f":"\"3.1\"","v":"3.1"},"Finns insatsplan?",null,null,null,null,null,null,null,null,null,205,null,null,null,null,"N","Insatsplan saknas"]
[]
[null,null,"Brandskyddspolicy","Ja","Nej","Ej aktuell"]
[null,{"$f":"\"4\"","v":"4"},"Finns brandskyddspolicy?",null,null,null,null,null,null,null,null,null,206,207,null,null,null,"N","Brandskyddspolicy saknas"]
[null,{"$f":"\"4.1\"","v":"4.1"},"Är brandskyddspolicy informerad ut i verksamheten?",null,null,null,null,null,null,null,null,null,207,null,null,null,null,"N","Brandskyddspolicy är ej informerad ut i verksamheten"]
[]
[null,null,"Samordnande av brandskyddet","Ja","Nej","Ej aktuell"]
[null,{"$f":"\"5\"","v":"5"},"Är brandskyddsansvarig utsedd?",null,null,null,null,null,null,null,null,null,208,null,null,null,null,"N","Brandskyddsansvarig är ej utsedd"]
[null,{"$f":"\"6\"","v":"6"},"Finns brandskyddsorganisation?",null,null,null,null,null,null,null,null,null,209,null,null,null,null,"N","Brandskyddsorganisation saknas"]
[]
[null,null,"Riskinventering","Ja","Nej","Ej aktuell"]
[null,{"$f":"\"7\"","v":"7"},"Genomförs brandskyddsrond i myndighetens lokaler?",null,null,null,null,null,null,null,null,null,210,211,null,null,null,"N","Brandskyddsrond genomförs ej i myndighetens lokaler"]
[null,{"$f":"\"7.1\"","v":"7.1"},"Genomförs brandskyddsrond systematiskt?",null,null,null,null,null,null,null,null,null,211,null,null,null,null,"N","Brandskyddsrond genomförs ej systematiskt i myndighetens lokaler"]
[null,{"$f":"\"8\"","v":"8"},"Har brandrisk identifierats vid brandskyddsrond?",null,null,null,null,null,null,null,null,null,212,"213 214 215",null,null,null,"N"]
[null,{"$f":"\"8.1\"","v":"8.1"},"Har åtgärd för identifierad brandrisk beslutats?",null,null,null,null,null,null,null,null,null,213,null,null,null,null,"N","Beslut om åtgärd för identifierad brandrisk saknas"]
[null,{"$f":"\"8.2\"","v":"8.2"},"Har tidplan för åtgärd av identifierad brandrisk beslutats?",null,null,null,null,null,null,null,null,null,214,null,null,null,null,"N","Tidsplan för åtgärd av identifierad brandrisk saknas"]
[null,{"$f":"\"8.3\"","v":"8.3"},"Har riskägare för identifierad brandrisk beslutats?",null,null,null,null,null,null,null,null,null,215,null,null,null,null,"N","Riskägare för åtgärd av identifierad brandrisk saknas"]
[]
[null,null,"Brandcellsindelning","Ja","Nej","Ej aktuell"]
[null,{"$f":"\"9\"","v":"9"},"Är myndigheten medveten om vart brandcellsgränser är lokaliserade?",null,null,null,null,null,null,null,null,null,216,null,null,null,null,"N","Medvetenhet om brandcellsgränsers lokalisering saknas"]
[null,{"$f":"\"10\"","v":"10"},"Är brandcellsgränser intakta?",null,null,null,null,null,null,null,null,null,217,218,null,null,null,"N","Brandcellsgränser är ej intakta"]
[null,{"$f":"\"10.1\"","v":"10.1"},"Har genomgång av alla ytor i brandcellsgräns genomförts?",null,null,null,null,null,null,null,null,null,218,null,null,null,null,"N","Genomgång av brandcellsgränsers alla ytor har ej genomförd"]
[null,{"$f":"\"11\"","v":"11"},"Är myndighetens lokaler brandcellsseparerade från annan hyresgäst?",null,null,null,null,null,null,null,null,null,219,null,null,null,null,"N","Annan hyresgäst finns inom samma brandcell"]
[]
[null,null,"Brandfarliga och explosiva varor","Ja","Nej","Ej aktuell"]
[null,{"$f":"\"12\"","v":"12"},"Finns brandfarliga och explosiva varor i verksamheten?",null,null,null,null,null,null,null,null,null,220,"221 224 225 226 227 228"]
[null,{"$f":"\"12.1\"","v":"12.1"},"Behövs tillstånd för den mängd brandfarliga och explosiva varor som förvaras i myndighetens lokaler?",null,null,null,null,null,null,null,null,null,221,222]
[null,{"$f":"\"12.1.1\"","v":"12.1.1"},"Är tillstånd aktuella?",null,null,null,null,null,null,null,null,null,222,223,null,null,null,"N","Tillstånd för brandfarliga och explosiva varor är ej aktuella"]
[null,{"$f":"\"12.1.1.1\"","v":"12.1.1.1"},"Följs den tillståndsgivna mängden upp systematiskt?",null,null,null,null,null,null,null,null,null,223,null,null,null,null,"N","Den tillståndsgivna mängden brandfarliga och explosiva varor följs ej upp systematiskt"]
[null,{"$f":"\"12.2\"","v":"12.2"},"Förvaras brandfarliga och explosiva varor betryggande?",null,null,null,null,null,null,null,null,null,224,null,null,null,null,"N","Brandfarliga och explosiva varor förvaras ej betryggande"]
[null,{"$f":"\"12.3\"","v":"12.3"},"Har personal, som hanterar brandfarliga och explosiva varor, rätt utbildning?",null,null,null,null,null,null,null,null,null,225,null,null,null,null,"N","Personal som hanterar brandfarliga och explosiva varor saknar rätt utbildning"]
[null,{"$f":"\"12.4\"","v":"12.4"},"Finns rutin för hantering av brandfarliga och explosiva varor?",null,null,null,null,null,null,null,null,null,226,null,null,null,null,"N","Rutiner gällande hantering av brandfarliga och explosiva varor saknas"]
[null,{"$f":"\"12.5\"","v":"12.5"},"Är de brandfarliga och explosiva varorna tydligt och rätt uppmärkta?",null,null,null,null,null,null,null,null,null,227,null,null,null,null,"N","Brandfarliga och explosiva varorna är ej tydligt och rätt uppmärkta"]
[null,{"$f":"\"12.6\"","v":"12.6"},"Finns tydlig instruktion gällande återvinning av farligt avfall?",null,null,null,null,null,null,null,null,null,228,null,null,null,null,"N","Tydlig instruktion gällande återvinning av farligt avfall saknas"]
[]
[null,null,"Heta Arbeten","Ja","Nej","Ej aktuell"]
[null,{"$f":"\"13\"","v":"13"},"Utförs tillfälliga Heta Arbeten i myndighetens verksamhet?",null,null,null,null,null,null,null,null,null,229,230]
[null,{"$f":"\"13.1\"","v":"13.1"},"Är tillståndsansvarig skriftligt utsedd?",null,null,null,null,null,null,null,null,null,230,"231 232 233",null,null,null,"N","Tillståndsansvarig vid Heta Arbeten är ej skriftligt utsedd "]
[null,{"$f":"\"13.1.1\"","v":"13.1.1"},"Har tillståndsansvarig giltigt certifikat?",null,null,null,null,null,null,null,null,null,231,null,null,null,null,"N","Tillståndsansvarig vid Heta Arbeten saknar giltigt certifikat"]
[null,{"$f":"\"13.1.2\"","v":"13.1.2"},"Finns riktlinje vid Heta Arbeten i myndighetens verksamhet?",null,null,null,null,null,null,null,null,null,232,null,null,null,null,"N","Riktlinje vid Heta Arbeten i myndighetens verksamhet saknas"]
[null,{"$f":"\"13.1.3\"","v":"13.1.3"},"Utförs Heta Arbeten, som kan bedömas som brandfarliga, i myndighetens verksamhet?",null,null,null,null,null,null,null,null,null,233,234]
[null,{"$f":"\"13.1.3.1\"","v":"13.1.3.1"},"Följs Säkerhetsregler för Heta Arbeten?",null,null,null,null,null,null,null,null,null,234,null,null,null,null,"N","Säkerhetsregler för Heta Arbeten följs ej"]
[null,{"$f":"\"14\"","v":"14"},"Utförs Heta Arbeten på en fast arbetsplats i myndighetens verksamhet?",null,null,null,null,null,null,null,null,null,235,236]
[null,{"$f":"\"14.1\"","v":"14.1"},"Uppfyller den fasta arbetsplatsen Boverkets byggregler för brandskydd med hänsyn till verksamhetens art?",null,null,null,null,null,null,null,null,null,236,null,null,null,null,"N","Fast arbetsplats för Heta Arbeten uppfyller ej Boverkets byggregler "]
[]
[null,null,"Släckutrustning","Ja","Nej","Ej aktuell"]
[null,{"$f":"\"15\"","v":"15"},"Är lokal utrustad med släckutrustning i tillräcklig utsträckning?",null,null,null,null,null,null,null,null,null,237,null,null,null,null,"N","Lokal är ej utrustad med släckutrustning i tillräcklig utsträckning"]
[null,{"$f":"\"16\"","v":"16"},"Genomförs service av släckutrustning?",null,null,null,null,null,null,null,null,null,238,239,null,null,null,"N","Service på släckutrustning genomförs ej"]
[null,{"$f":"\"16.1\"","v":"16.1"},"Är det myndighetens ansvar att service av släckutrustning genomförs?",null,null,null,null,null,null,null,null,null,239,240]
[null,{"$f":"\"16.1.1\"","v":"16.1.1"},"Finns serviceavtal?",null,null,null,null,null,null,null,null,null,240,null,null,null,null,"N","Serviceavtal gällande släckutrustning saknas"]
[null,{"$f":"\"17\"","v":"17"},"Finns handbrandsläckare i myndighetens lokal?",null,null,null,null,null,null,null,null,null,241,242]
[null,{"$f":"\"17.1\"","v":"17.1"},"Är typ av handbrandsläckare anpassad efter verksamheten?",null,null,null,null,null,null,null,null,null,242,null,null,null,null,"N","Handbrandsläckare är ej anpassad efter myndighetens verksamhet"]
[null,{"$f":"\"18\"","v":"18"},"Är släckutrustning korrekt utritad på utrymningsplan?",null,null,null,null,null,null,null,null,null,243,null,null,null,null,"N","Släckutrustning är ej korrekt utritad på utrymningsplan"]
[null,{"$f":"\"19\"","v":"19"},"Finns brandfilt i anslutning till pentry och kök?",null,null,null,null,null,null,null,null,null,244,null,null,null,null,"N","Brandfilt finns ej i anslutning till pentry och kök"]
[null,{"$f":"\"20\"","v":"20"},"Finns sprinkler installerad i någon av myndighetens lokaler?",null,null,null,null,null,null,null,null,null,245,"246 247"]
[null,{"$f":"\"20.1\"","v":"20.1"},"Är plats för avstängning av sprinkler känd?",null,null,null,null,null,null,null,null,null,246,null,null,null,null,"N","Plats för avstängning av sprinkler är ej känd"]
[null,{"$f":"\"20.2\"","v":"20.2"},"Finns sprinklerkil?",null,null,null,null,null,null,null,null,null,247,248]
[null,{"$f":"\"20.2.1\"","v":"20.2.1"},"Är förvaringsplats känd?",null,null,null,null,null,null,null,null,null,248,null,null,null,null,"N","Förvaringsplats för sprinklerkil är ej känd"]
[]
[null,null,"Utbildning","Ja","Nej","Ej aktuell"]
[null,{"$f":"\"21\"","v":"21"},"Utbildas personal i brandskydd?",null,null,null,null,null,null,null,null,null,249,"250 251",null,null,null,"N","Personal får ej utbildning i brandskydd"]
[null,{"$f":"\"21.1\"","v":"21.1"},"Teoretisk information?",null,null,null,null,null,null,null,null,null,250,null,null,null,null,"N","Personal får ej teoretisk utbildning i brandskydd"]
[null,{"$f":"\"21.2\"","v":"21.2"},"Praktiska övningar?",null,null,null,null,null,null,null,null,null,251,null,null,null,null,"N","Personal får ej praktisk utbildning i brandskydd"]
[null,{"$f":"\"22\"","v":"22"},"Har person, med roll i brandskyddsorganisationen, relevant utbildning?",null,null,null,null,null,null,null,null,null,252,null,null,null,null,"N","Person med roll i brandskyddsorganisationen, saknar relevant utbildning"]
[null,{"$f":"\"23\"","v":"23"},"Får nyanställd personal information om lokalernas branskydd?",null,null,null,null,null,null,null,null,null,253,null,null,null,null,"N","Nyanställd personal får ej information om lokalernas brandskydd"]
[]
[null,null,"Uppföljning","Ja","Nej","Ej aktuell"]
[null,{"$f":"\"24\"","v":"24"},"Följs brandskyddsarbetet upp?",null,null,null,null,null,null,null,null,null,254,null,null,null,null,"N","Brandskyddsarbetet följs ej upp"]

{"sheet":"El","index":10,"n_rows":18,"n_cols":19,"rows_kept":18,"cut":false,"hidden":false,"merged":[]}
[null,null,"El",null,null,null,null,null,null,null,null,null,18]
[]
[null,null,null,"Ja","Nej","Ej aktuell"]
[null,{"$f":"\"1\"","v":"1"},"Finns gränsdragningslista mellan hyresgäst och fastighetsägare?",null,null,null,null,null,null,null,null,null,255,256,null,null,null,"N","Gränsdragningslista gällande el mellan hyresgäst och fastighetsägare saknas"]
[null,{"$f":"\"1.1\"","v":"1.1"},"Är den uppdaterad?",null,null,null,null,null,null,null,null,null,256,null,null,null,null,"N","Gränsdragningslista gällande el är ej uppdaterad"]
[null,{"$f":"\"2\"","v":"2"},"Finns timer på eluttag där ej fasta hushållsmaskiner används?",null,null,null,null,null,null,null,null,null,257,null,null,null,null,"N","Eluttag där ej fasta hushållsmaskiner används saknar timer"]
[null,{"$f":"\"3\"","v":"3"},"Finns rutin för rapportering av avvikelse till fastighetsägaren?",null,null,null,null,null,null,null,null,null,258,null,null,null,null,"N","Rutin gällande rapportering av avvikelse gällande el till fastighetsägaren saknas"]
[]
[null,null,"Revisionsbesiktning av elanläggningar","Ja","Nej","Ej aktuell"]
[null,{"$f":"\"4\"","v":"4"},"Är myndighetens verksamhet besiktningspliktig?",null,null,null,null,null,null,null,null,null,259,260]
[null,{"$f":"\"4.1\"","v":"4.1"},"Har revisionsbesiktning genomförts?",null,null,null,null,null,null,null,null,null,260,261,null,null,null,"N","Revisionsbesikning av elanläggning har ej genomförts (verksamhet)"]
[null,{"$f":"\"4.1.1\"","v":"4.1.1"},"Finns upptagna anmärkningar?",null,null,null,null,null,null,null,null,null,261,262]
[null,{"$f":"\"4.1.1.1\"","v":"4.1.1.1"},"Har upptagna anmärkningar åtgärdats?",null,null,null,null,null,null,null,null,null,262,null,null,null,null,"N","Upptagna anmärkningar vid revisionsbesikning av elanläggning har ej åtgärdats (verksamhet)"]
[null,{"$f":"\"5\"","v":"5"},"Äger myndigheten fastighet?",null,null,null,null,null,null,null,null,null,263,264]
[null,{"$f":"\"5.1\"","v":"5.1"},"Är myndighetens fastighet besiktningspliktig?",null,null,null,null,null,null,null,null,null,264,"265 266"]
[null,{"$f":"\"5.1.1\"","v":"5.1.1"},"Har revisionsbesiktning genomförts?",null,null,null,null,null,null,null,null,null,265,null,null,null,null,"N","Revisionsbesikning av elanläggning har ej genomförts (fastighet)"]
[null,{"$f":"\"5.1.2\"","v":"5.1.2"},"Finns upptagna anmärkningar?",null,null,null,null,null,null,null,null,null,266,267]
[null,{"$f":"\"5.1.2.1\"","v":"5.1.2.1"},"Har upptagna anmärkningar åtgärdats?",null,null,null,null,null,null,null,null,null,267,null,null,null,null,"N","Upptagna anmärkningar vid revisionsbesikning av elanläggning har ej åtgärdats (fastighet)"]

{"sheet":"Vatten","index":11,"n_rows":17,"n_cols":19,"rows_kept":17,"cut":false,"hidden":false,"merged":[]}
[null,null,"Vatten",null,null,null,null,null,null,null,null,null,17]
[]
[null,null,null,"Ja","Nej","Ej aktuell"]
[null,{"$f":"\"1\"","v":"1"},"Kontrolleras vatten- och avloppsledningar systematiskt?",null,null,null,null,null,null,null,null,null,268,269,null,null,null,"N","Kontroll av vatten- och avloppsledningar genomförs ej systematiskt"]
[null,{"$f":"\"1.1\"","v":"1.1"},"Har vattenrelaterade risker identifierats?",null,null,null,null,null,null,null,null,null,269,270]
[null,{"$f":"\"1.1.1\"","v":"1.1.1"},"Har identifierade risker åtgärdats?",null,null,null,null,null,null,null,null,null,270,null,"271 272 273"]
[null,{"$f":"\"1.1.1.1\"","v":"1.1.1.1"},"Har åtgärd för identifierade risker beslutats?",null,null,null,null,null,null,null,null,null,271,null,null,null,null,"N","Åtgärd för identifierade vattenrisker saknas"]
[null,{"$f":"\"1.1.1.2\"","v":"1.1.1.2"},"Har tidplan för åtgärd av identifierade risker beslutats?",null,null,null,null,null,null,null,null,null,272,null,null,null,null,"N","Tidsplan för åtgärd av identifierade vattenrisker saknas"]
[null,{"$f":"\"1.1.1.3\"","v":"1.1.1.3"},"Har riskägare för identifierade risker beslutats?",null,null,null,null,null,null,null,null,null,273,null,null,null,null,"N","Riskägare för åtgärd av identifierade vattenrisker saknas"]
[null,{"$f":"\"2\"","v":"2"},"Finns läckageskydd på hushållsmaskin med anslutet vatten?",null,null,null,null,null,null,null,null,null,274,null,null,null,null,"N","Hushållsmaskin med anslutet vatten saknar läckageskydd"]
[null,{"$f":"\"3\"","v":"3"},"Finns golvskydd under hushållsmaskin med anslutet vatten?",null,null,null,null,null,null,null,null,null,275,null,null,null,null,"N","Golvskydd under hushållsmaskin med anslutet vatten saknas"]
[null,{"$f":"\"4\"","v":"4"},"Finns risk för vattensabotage  av person i myndighetens lokal?",null,null,null,null,null,null,null,null,null,276,"277 278 279"]
[null,{"$f":"\"4.1\"","v":"4.1"},"Finns beröringsfri blandare?",null,null,null,null,null,null,null,null,null,277,null,null,null,null,"N","Beröringsfri blandare är ej installerad"]
[null,{"$f":"\"4.2\"","v":"4.2"},"Finns beröringsfritt spolsystem för toaletter?",null,null,null,null,null,null,null,null,null,278,null,null,null,null,"N","Beröringsfritt spolsystem för toaletter är ej installerad"]
[null,{"$f":"\"4.3\"","v":"4.3"},"Finns magnetventil på inkommande vatten kopplat till väsentlig funktion?",null,null,null,null,null,null,null,null,null,279,null,null,null,null,"N","Magnetventil på inkommande vatten är ej kopplad till väsentlig funktion"]
[null,{"$f":"\"5\"","v":"5"},"Finns rutin för översyn av golvbrunn?",null,null,null,null,null,null,null,null,null,280,null,null,null,null,"N","Rutin för översyn av golvbrunn saknas"]
[null,{"$f":"\"6\"","v":"6"},"Genomförs VVS-installation fackmannamässigt? ",null,null,null,null,null,null,null,null,null,281,null,null,null,null,"N","VVS-installation genomförs ej fackmannamässigt"]

{"sheet":"IT","index":12,"n_rows":36,"n_cols":19,"rows_kept":36,"cut":false,"hidden":false,"merged":[]}
[null,null,"IT",null,null,null,null,null,null,null,null,null,36]
[]
[null,null,null,"Ja","Nej","Ej aktuell"]
[null,{"$f":"\"1\"","v":"1"},"Finns övergripande riktlinjer för användande av IT?",null,null,null,null,null,null,null,null,null,282,283,null,null,null,"N","Övergripande riktlinjer för användande av IT saknas"]
[null,{"$f":"\"1.1\"","v":"1.1"},"Är riktlinjerna uppdaterade?",null,null,null,null,null,null,null,null,null,283,null,null,null,null,"N","Övergripande riktlinjer för användande av IT är ej uppdaterade"]
[null,{"$f":"\"2\"","v":"2"},"Finns riktlinjer gällande IT-säkerhet?",null,null,null,null,null,null,null,null,null,284,null,null,null,null,"N","Riktlinjer gällande IT-säkerhet saknas"]
[]
[null,null,"Säkerhetskopiering","Ja","Nej","Ej aktuell"]
[null,{"$f":"\"3\"","v":"3"},"Säkerhetskopieras data?",null,null,null,null,null,null,null,null,null,285,286,null,null,null,"N","Data säkerhetskopieras ej"]
[null,{"$f":"\"3.1\"","v":"3.1"},"Finns rutin för säkerhetskopiering av data?",null,null,null,null,null,null,null,null,null,286,287,null,null,null,"N","Rutin för säkerhetskopiering av data saknas"]
[null,{"$f":"\"3.1.1\"","v":"3.1.1"},"Provas rutin kontinuerligt?",null,null,null,null,null,null,null,null,null,287,null,null,null,null,"N","Rutin för säkerhetskopiering av data provas ej kontinuerligt"]
[null,{"$f":"\"3.2\"","v":"3.2"},"Förvaras säkerhetskopia i separat brandcell?",null,null,null,null,null,null,null,null,null,288,null,null,null,null,"N","Säkerhetskopia av data förvaras ej i separat brandcell"]
[null,{"$f":"\"3.3\"","v":"3.3"},"Finns tillträdeskontroll till utrymme med säkerhetskopia?",null,null,null,null,null,null,null,null,null,289,null,null,null,null,"N","Tillträdeskontroll till utrymme med säkerhetkopia av data saknas"]
[]
[null,null,"Digitala angrepp","Ja","Nej","Ej aktuell"]
[null,{"$f":"\"4\"","v":"4"},"Är säkerhetsprogram installerade?",null,null,null,null,null,null,null,null,null,290,null,291]
[null,{"$f":"\"4.1\"","v":"4.1"},"Är detta ett medvetet val?",null,null,null,null,null,null,null,null,null,291,null,null,null,null,"N","Behov av att installera säkerhetsprogram är ej analyserat"]
[null,{"$f":"\"5\"","v":"5"},"Uppmärksammas försök till angrepp av obehöriga?",null,null,null,null,null,null,null,null,null,292,null,null,null,null,"N","Försök till digitala angrepp av obehöriga uppmärksammas ej"]
[null,{"$f":"\"6\"","v":"6"},"Finns regler för bärbar PC och annan mobil lagringsmedia?",null,null,null,null,null,null,null,null,null,293,null,null,null,null,"N","Regler för bärbar PC och annan mobil lagringsmedia saknas"]
[]
[null,null,"Behörighet","Ja","Nej","Ej aktuell"]
[null,{"$f":"\"7\"","v":"7"},"Finns rutin för behörighet till informationssystem?",null,null,null,null,null,null,null,null,null,294,null,null,null,null,"N","Rutin för behörighet till informationssystem saknas"]
[null,{"$f":"\"8\"","v":"8"},"Finns möjlighet till sammanställning av alla användare samt dess behörighet?",null,null,null,null,null,null,null,null,null,295,null,null,null,null,"N","Möjlighet till sammanställning av alla IT-användare samt dess behörighet saknas"]
[]
[null,null,"Driftgodkännande","Ja","Nej","Ej aktuell"]
[null,{"$f":"\"9\"","v":"9"},"Är systemägare identifierad?",null,null,null,null,null,null,null,null,null,296,null,null,null,null,"N","Systemägare för IT är ej identifierad"]
[null,{"$f":"\"10\"","v":"10"},"Har systemägare kontroll på nya versioner och program?",null,null,null,null,null,null,null,null,null,297,null,null,null,null,"N","Systemägare har ej kontroll på nya versioner och program"]
[null,{"$f":"\"11\"","v":"11"},"Är systemförvaltare utsedd?",null,null,null,null,null,null,null,null,null,298,null,null,null,null,"N","Systemförvaltare är ej utsedd"]
[null,{"$f":"\"12\"","v":"12"},"Är användare som kan ändra i system definierat?",null,null,null,null,null,null,null,null,null,299,null,null,null,null,"N","Användare som kan ändra i IT-system är ej definierat"]
[]
[null,null,"Utbildning","Ja","Nej","Ej aktuell"]
[null,{"$f":"\"13\"","v":"13"},"Har personal lämplig utbildning i IT-säkerhet?",null,null,null,null,null,null,null,null,null,300,null,null,null,null,"N","Personal har ej lämplig utbildning i IT-säkerhet"]
[]
[null,null,"Uppföljning","Ja","Nej","Ej aktuell"]
[null,{"$f":"\"14\"","v":"14"},"Följs övergripande riktlinjer för användande av IT upp?",null,null,null,null,null,null,null,null,null,301,null,null,null,null,"N","Övergripande riktlinjer för användande av IT följs ej upp"]
[null,{"$f":"\"15\"","v":"15"},"Följs riktlinjer för IT-säkerhet upp?",null,null,null,null,null,null,null,null,null,302,null,null,null,null,"N","Riktlinjer för IT-säkerhet följs ej upp"]

{"sheet":"Fordon","index":13,"n_rows":18,"n_cols":19,"rows_kept":18,"cut":false,"hidden":false,"merged":[]}
[null,null,"Fordon",null,null,null,null,null,null,null,null,null,18]
[]
[null,null,null,"Ja","Nej","Ej aktuell"]
[null,{"$f":"\"1\"","v":"1"},"Har myndigheten egen tjänstebil eller fordon på långtidsleasing?",null,null,null,null,null,null,null,null,null,303,"304 305 306 307 308 310 312"]
[null,{"$f":"\"1.1\"","v":"1.1"},"Genomförs körkortskontroll av förare vid lån av tjänstebil?",null,null,null,null,null,null,null,null,null,304,null,null,null,null,"N","Körkortskontroll av förare vid lån av tjänstebil utförs ej"]
[null,{"$f":"\"1.2\"","v":"1.2"},"Finns fast parkeringsplats avsedd för myndighetens tjänstebil?",null,null,null,null,null,null,null,null,null,305,null,null,null,null,"N","Fast parkeringsplats för myndighetens tjänstebil saknas"]
[null,{"$f":"\"1.3\"","v":"1.3"},"Finns policy om och hur tjänstebil får användas privat?",null,null,null,null,null,null,null,null,null,306,null,null,null,null,"N","Policy gällande privatbruk av tjänstebil saknas"]
[null,{"$f":"\"1.4\"","v":"1.4"},"Finns alkolås installerat i myndighetens tjänstebil?",null,null,null,null,null,null,null,null,null,307,null,null,null,null,"N","Alkolås är ej insatallerat i myndighetens tjänstebil"]
[null,{"$f":"\"1.5\"","v":"1.5"},"Förvaras bildäck i myndighetens lokal?",null,null,null,null,null,null,null,null,null,308,309]
[null,{"$f":"\"1.5.1\"","v":"1.5.1"},"Förvaras bildäck på säkert sätt?",null,null,null,null,null,null,null,null,null,309,null,null,null,null,"N","Bildäck förvaras ej på säkert sätt i myndighetens lokal"]
[null,{"$f":"\"1.6\"","v":"1.6"},"Finns risk för skadegörelse på fordon vid märkning med logotyp av myndighetens tjänstebil?",null,null,null,null,null,null,null,null,null,310,311]
[null,{"$f":"\"1.6.1\"","v":"1.6.1"},"Är beslut gällande märkning av myndighetens tjänstebil taget?",null,null,null,null,null,null,null,null,null,311,null,null,null,null,"N","Beslut gällande märkning av myndighetens tjänstebil saknas"]
[null,{"$f":"\"1.7\"","v":"1.7"},"Finns risk för skadegörelse på fordon vid märkning med logotyp av myndighetens parkeringsplats?",null,null,null,null,null,null,null,null,null,312,313]
[null,{"$f":"\"1.7.1\"","v":"1.7.1"},"Är beslut gällande märkning av myndighetens parkeringsplats taget?",null,null,null,null,null,null,null,null,null,313,null,null,null,null,"N","Beslut gällande märkning av myndighetens parkeringsplats saknas"]
[null,{"$f":"\"2\"","v":"2"},"Framför myndighetens personal fordon i utlandet?",null,null,null,null,null,null,null,null,null,314,315]
[null,{"$f":"\"2.1\"","v":"2.1"},"Finns rutin för internationellt körkort?",null,null,null,null,null,null,null,null,null,315,null,null,null,null,"N","Rutin för internationellt körkort saknas"]
[null,{"$f":"\"3\"","v":"3"},"Har myndigheten truck eller mobil lyft i verksamheten?",null,null,null,null,null,null,null,null,null,316,317]
[null,{"$f":"\"3.1\"","v":"3.1"},"Har personal giltig behörighet för användade?",null,null,null,null,null,null,null,null,null,317,null,null,null,null,"N","Personal har ej giltig behörighet för användande av truck eller mobil lyft"]

{"sheet":"Restvärde","index":14,"n_rows":10,"n_cols":19,"rows_kept":10,"cut":false,"hidden":false,"merged":[]}
[null,null,"Restvärde",null,null,null,null,null,null,null,null,null,10]
[]
[null,null,null,"Ja","Nej","Ej aktuell"]
[null,{"$f":"\"1\"","v":"1"},"Finns restvärdeplan?",null,null,null,null,null,null,null,null,null,318,"320 321 322 324",319]
[null,{"$f":"\"1.1\"","v":"1.1"},"Är avsaknad av restvärdeplan ett medvetet val?",null,null,null,null,null,null,null,null,null,319,null,null,null,null,"N","Behov av restvärdeplan är ej analyserat"]
[null,{"$f":"\"1.2\"","v":"1.2"},"Är restvärdeplan uppdaterad?",null,null,null,null,null,null,null,null,null,320,null,null,null,null,"N","Restvärdeplan är ej uppdaterad"]
[null,{"$f":"\"1.3\"","v":"1.3"},"Finns ansvarig för restvärdeplan utsedd?",null,null,null,null,null,null,null,null,null,321,null,null,null,null,"N","Ansvarig för restvärdeplan är ej utsedd"]
[null,{"$f":"\"1.4\"","v":"1.4"},"Finns behov av att sekretessbelägga restvärdeplan?",null,null,null,null,null,null,null,null,null,322,323]
[null,{"$f":"\"1.4.1\"","v":"1.4.1"},"Är restervärdeplan sekretessbelagd?",null,null,null,null,null,null,null,null,null,323,null,null,null,null,"N","Restvärdeplan är ej sekretessbelagd"]
[null,{"$f":"\"1.5\"","v":"1.5"},"Är restvärdeplan förvarad på betryggande sätt?",null,null,null,null,null,null,null,null,null,324,null,null,null,null,"N","Restvärdeplan är ej förvarad på betryggande sätt"]

{"sheet":"Tillbudsrapportering","index":15,"n_rows":7,"n_cols":19,"rows_kept":7,"cut":false,"hidden":false,"merged":[]}
[null,null,"Tillbudsrapportering",null,null,null,null,null,null,null,null,null,7]
[]
[null,null,null,"Ja","Nej","Ej aktuell"]
[null,{"$f":"\"1\"","v":"1"},"Finns tillbudsrapportering inom, för myndigheten, aktuella områden? (ex. inom arbetsmiljö, lokal, IT)",null,null,null,null,null,null,null,null,null,325,"326 327",328,null,null,"N","Tillbudsrapportering saknas"]
[null,{"$f":"\"1.1\"","v":"1.1"},"Finns rutin för hantering av rapporterade tillbud?",null,null,null,null,null,null,null,null,null,326,null,null,null,null,"N","Rutin för hantering av rapporterade tillbud saknas"]
[null,{"$f":"\"1.2\"","v":"1.2"},"Följs rapporterade tillbud upp?",null,null,null,null,null,null,null,null,null,327,null,null,null,null,"N","Rapporterade tillbud följs ej upp"]
[null,{"$f":"\"1.3\"","v":"1.3"},"Är avsaknad av tillbudsrapportering ett medvetet val?",null,null,null,null,null,null,null,null,null,328,null,null,null,null,"N","Behov av tillbudsrapportering är ej analyserat"]

{"sheet":"Försörjningssystem","index":16,"n_rows":28,"n_cols":19,"rows_kept":28,"cut":false,"hidden":false,"merged":[]}
[null,null,"Försörjningssystem",null,null,null,null,null,null,null,null,null,28]
[]
[null,null,"Elkraft","Ja","Nej","Ej aktuell"]
[null,{"$f":"\"1\"","v":"1"},"Är beroendet av elkraft analyserat?",null,null,null,null,null,null,null,null,null,329,null,null,null,null,"N","Beroendet av elkraft är ej analyserat"]
[null,{"$f":"\"2\"","v":"2"},"Finns reservkraft?",null,null,null,null,null,null,null,null,null,330,null,null,null,null,"N","Reservkraft vid strömbortfall finns ej"]
[null,{"$f":"\"3\"","v":"3"},"Finns plan för agerande vid elavbrott?",null,null,null,null,null,null,null,null,null,331,null,null,null,null,"N","Plan för agerande vid elavbrott saknas"]
[]
[null,null,"Vatten","Ja","Nej","Ej aktuell"]
[null,{"$f":"\"4\"","v":"4"},"Är beroendet av vatten analyserat?",null,null,null,null,null,null,null,null,null,332,null,null,null,null,"N","Beroendet av vatten är ej analyserat"]
[null,{"$f":"\"5\"","v":"5"},"Finns plan för agerande vid avbrott på vattenförsörjning?",null,null,null,null,null,null,null,null,null,333,null,null,null,null,"N","Plan för agerande vid avbrott på vattenförsörjning saknas"]
[]
[null,null,"Lokal","Ja","Nej","Ej aktuell"]
[null,{"$f":"\"6\"","v":"6"},"Är beroendet av befintliga lokaler analyserat?",null,null,null,null,null,null,null,null,null,334,null,null,null,null,"N","Beroendet av befintliga lokaler är ej analyserat"]
[null,{"$f":"\"7\"","v":"7"},"Finns plan för agerande om lokaler blir obrukbara?",null,null,null,null,null,null,null,null,null,335,null,null,null,null,"N","Plan för agerande vid obrukbara lokaler saknas"]
[]
[null,null,"Tele-/nätverk-/radiokommunikation","Ja","Nej","Ej aktuell"]
[null,{"$f":"\"8\"","v":"8"},"Är beroendet av tele-/nätverk-/radiokommunikation analyserat?",null,null,null,null,null,null,null,null,null,336,null,null,null,null,"N","Beroendet av tele-/nätverk-/radiokommunikation är ej analyserat"]
[null,{"$f":"\"9\"","v":"9"},"Finns plan för agerande vid avbrott på tele-/nätverk-/radiokommunikation?",null,null,null,null,null,null,null,null,null,337,null,null,null,null,"N","Plan för agerande vid avbrott på tele-/nätverk-/radiokommunikation saknas"]
[null,{"$f":"\"10\"","v":"10"},"Har personal tillgång till mobiltelefon i tjänsten?",null,null,null,null,null,null,null,null,null,338,339]
[null,{"$f":"\"10.1\"","v":"10.1"},"Finns policy gällande användande av mobiltelefon?",null,null,null,null,null,null,null,null,null,339,null,null,null,null,"N","Policy för användande av mobiltelefon i tjänsten saknas"]
[]
[null,null,"IT-drift","Ja","Nej","Ej aktuell"]
[null,{"$f":"\"11\"","v":"11"},"Är beroendet av IT-drift analyserat?",null,null,null,null,null,null,null,null,null,340,null,null,null,null,"N","Beroendet av IT-drift är ej analyserat"]
[null,{"$f":"\"12\"","v":"12"},"Finns alternativa reservrutiner?",null,null,null,null,null,null,null,null,null,341,null,null,null,null,"N","Alternativa reservrutiner för IT-system saknas"]
[null,{"$f":"\"13\"","v":"13"},"Finns rutin för nedtagning av system?",null,null,null,null,null,null,null,null,null,342,343]
[null,{"$f":"\"13.1\"","v":"13.1"},"Har rutin övats?",null,null,null,null,null,null,null,null,null,343,null,null,null,null,"N","Rutin för nedtagning av IT-system har ej övats"]
[null,{"$f":"\"14\"","v":"14"},"Finns rutin för återstart av system?",null,null,null,null,null,null,null,null,null,344,345]
[null,{"$f":"\"14.1\"","v":"14.1"},"Har rutin övats?",null,null,null,null,null,null,null,null,null,345,null,null,null,null,"N","Rutin för återstart av IT-system har ej övats"]

{"sheet":"Fastighet","index":17,"n_rows":22,"n_cols":19,"rows_kept":22,"cut":false,"hidden":false,"merged":[]}
[null,null,"Fastighet",null,null,null,null,null,null,null,null,null,22]
[]
[null,null,"Inre miljö","Ja","Nej","Ej aktuell"]
[null,{"$f":"\"1\"","v":"1"},"Underhålls fastighet på tillfredställande sätt av fastighetsägare?",null,null,null,null,null,null,null,null,null,346,null,null,null,null,"N","Fastighet underhålls ej på tillfredställande sätt av fastighetsägare"]
[null,{"$f":"\"2\"","v":"2"},"Finns riskfylld verksamhet i anslutning till myndighetens lokal?",null,null,null,null,null,null,null,null,null,347,null,null,null,null,"J","Riskfylld verksamhet finns i anslutning till myndighetens lokal"]
[]
[null,null,"Yttre miljö","Ja","Nej","Ej aktuell"]
[null,{"$f":"\"3\"","v":"3"},"Finns riskfylld verksamhet i myndighetens närområde?",null,null,null,null,null,null,null,null,null,348,null,null,null,null,"J","Riskfylld verksamhet finns i myndighetens närområde"]
[null,{"$f":"\"4\"","v":"4"},"Har myndigheten lokal med ensligt läge?",null,null,null,null,null,null,null,null,null,349,null,null,null,null,"J","Myndigheten har lokal med ensligt läge"]
[null,{"$f":"\"5\"","v":"5"},"Finns tät växtlighet eller annat vid fastighet som hindrar insyn?",null,null,null,null,null,null,null,null,null,350,null,null,null,null,"J","Insyn hindras till fastighet av tät växtlighet eller annat"]
[null,{"$f":"\"6\"","v":"6"},"Är utomhusbelysning tillfredställande?",null,null,null,null,null,null,null,null,null,351,null,null,null,null,"N","Utomhusbelysning är ej tillfredställande"]
[null,{"$f":"\"7\"","v":"7"},"Finns lastkaj?",null,null,null,null,null,null,null,null,null,352,"353 354 355 357"]
[null,{"$f":"\"7.1\"","v":"7.1"},"Är lastkaj fri från brännbart material?",null,null,null,null,null,null,null,null,null,353,null,null,null,null,"N","Lastkaj är ej fri från brännbart material"]
[null,{"$f":"\"7.2\"","v":"7.2"},"Är lastkaj upplyst?",null,null,null,null,null,null,null,null,null,354,null,null,null,null,"N","Lastkaj är ej upplyst"]
[null,{"$f":"\"7.3\"","v":"7.3"},"Leveraras varor efter ordinarie arbetstid? ",null,null,null,null,null,null,null,null,null,355,356]
[null,{"$f":"\"7.3.1\"","v":"7.3.1"},"Finns rutin för mottagande?",null,null,null,null,null,null,null,null,null,356,null,null,null,null,"N","Rutin för mottagande av varor efter ordinarie arbetstid saknas"]
[null,{"$f":"\"7.4\"","v":"7.4"},"Har lastkaj skärmtak?",null,null,null,null,null,null,null,null,null,357,358]
[null,{"$f":"\"7.4.1\"","v":"7.4.1"},"Skyddas lastkaj med detektor för brand under skärmtak?",null,null,null,null,null,null,null,null,null,358,null,null,null,null,"N","Lastkaj skyddas ej med detektor för brand under skärmtak"]
[null,{"$f":"\"8\"","v":"8"},"Finns container?",null,null,null,null,null,null,null,null,null,359,360]
[null,{"$f":"\"8.1\"","v":"8.1"},"Är container av öppen modell?",null,null,null,null,null,null,null,null,null,360,361,362]
[null,{"$f":"\"8.1.1\"","v":"8.1.1"},"Är den placerad minst 6 meter från husvägg?",null,null,null,null,null,null,null,null,null,361,null,null,null,null,"N","Container är ej placerad med rätt avstånd till husvägg"]
[null,{"$f":"\"8.1.2\"","v":"8.1.2"},"Är den placerad minst 4 meter från husvägg?",null,null,null,null,null,null,null,null,null,362,null,null,null,null,"N","Container är ej placerad med rätt avstånd till husvägg"]

{"sheet":"Ordning och reda","index":18,"n_rows":17,"n_cols":19,"rows_kept":17,"cut":false,"hidden":false,"merged":[]}
[null,null,"Ordning och reda",null,null,null,null,null,null,null,null,null,17]
[]
[null,null,null,"Ja","Nej","Ej aktuell"]
[null,{"$f":"\"1\"","v":"1"},"Finns policy gällande levande ljus?",null,null,null,null,null,null,null,null,null,363,null,null,null,null,"N","Policy gällande levande ljus saknas"]
[null,{"$f":"\"2\"","v":"2"},"Finns policy gällande öppen eller stängd kontorsdörr vid arbetsdagens slut?",null,null,null,null,null,null,null,null,null,364,null,null,null,null,"N","Policy gällande öppen eller stängd kontorsdörr vid arbetsdagens slut saknas"]
[null,{"$f":"\"3\"","v":"3"},"Finns rutin gällande förvaring och uppställning av egendom i myndighetens lokal?",null,null,null,null,null,null,null,null,null,365,null,null,null,null,"N","Rutin gällande förvaring och uppställning av egendom i myndighetens lokal saknas"]
[null,{"$f":"\"4\"","v":"4"},"Har översyn av lösa kablar genomförts?",null,null,null,null,null,null,null,null,null,366,null,null,null,null,"N","Översyn av lösa kablar har ej genomförts"]
[null,{"$f":"\"5\"","v":"5"},"Tillåts flyttbar värmekälla i myndighetens lokal?",null,null,null,null,null,null,null,null,null,367,368]
[null,{"$f":"\"5.1\"","v":"5.1"},"Tillåts enbart flyttbar värmekälla tillhandahållen av myndigheten?",null,null,null,null,null,null,null,null,null,368,null,null,null,null,"N","Flyttbar värmekälla ej tillhandahållen av myndigheten tillåts i myndighetens lokal"]
[null,{"$f":"\"6\"","v":"6"},"Upplevs myndighetens lokal ha god ordning och reda?",null,null,null,null,null,null,null,null,null,369,null,null,null,null,"N","Myndighetens lokal upplevs ej ha god ordning och reda"]
[null,{"$f":"\"7\"","v":"7"},"Är återvinningsstation placerad på lämplig plats?",null,null,null,null,null,null,null,null,null,370,null,null,null,null,"N","Återvinningsstation är ej placerad på lämplig plats"]
[]
[null,null,"Studenter vid universitet och högskolor","Ja","Nej","Ej aktuell"]
[null,{"$f":"\"8\"","v":"8"},"Hyr myndigheten bostad som vidare hyrs ut till student?",null,null,null,null,null,null,null,null,null,371,"372 373 374"]
[null,{"$f":"\"8.1\"","v":"8.1"},"Tilldelas hyresgäst inflyttningsinformation?",null,null,null,null,null,null,null,null,null,372,null,null,null,null,"N","Hyresgäst tilldelas ej inflyttningsinformation av myndigheten vid bostadsuthyrning"]
[null,{"$f":"\"8.2\"","v":"8.2"},"Finns timer på spis i uthyrningsbostad?",null,null,null,null,null,null,null,null,null,373,null,null,null,null,"N","Timer på spis i uthyrningsbostad saknas"]
[null,{"$f":"\"8.3\"","v":"8.3"},"Finns brandvarnare i uthyrningsbostad?",null,null,null,null,null,null,null,null,null,374,null,null,null,null,"N","Brandvarnare i uthyrningsbostad saknas"]

{"sheet":"Värdefull egendom","index":19,"n_rows":17,"n_cols":19,"rows_kept":17,"cut":false,"hidden":false,"merged":[]}
[null,null,"Värdefull egendom",null,null,null,null,null,null,null,null,null,17]
[]
[null,null,null,"Ja","Nej","Ej aktuell"]
[null,{"$f":"\"1\"","v":"1"},"Har myndigheten identifierat sin mest värdefulla egendom ur ett ekonomiskt perspektiv?",null,null,null,null,null,null,null,null,null,375,376]
[null,{"$f":"\"1.1\"","v":"1.1"},"Skyddas egendom på betryggande sätt?",null,null,null,null,null,null,null,null,null,376,null,null,null,null,"N","Myndighetens mest värdefulla egendom (ekonomiskt perspektiv) skyddas ej på betryggande sätt"]
[null,{"$f":"\"2\"","v":"2"},"Har myndigheten identifierat sin mest värdefulla egendom ur ett verksamhetsperspektiv?",null,null,null,null,null,null,null,null,null,377,378]
[null,{"$f":"\"2.1\"","v":"2.1"},"Skyddas egendom på betryggande sätt?",null,null,null,null,null,null,null,null,null,378,null,null,null,null,"N","Myndighetens mest värdefulla egendom (verksamhetsperspektiv) skyddas ej på betryggande sätt"]
[]
[null,null,"Värdefull egendom i lågtemperaturreglerade utrymmen","Ja","Nej","Ej aktuell"]
[null,{"$f":"\"3\"","v":"3"},"Förvaras värdefull egendom i lågtemperaturreglerat utrymme?",null,null,null,null,null,null,null,null,null,379,380]
[null,{"$f":"\"3.1\"","v":"3.1"},"Skyddas lågtemperaturreglerat utrymme med temperaturlarm?",null,null,null,null,null,null,null,null,null,380,"381 384 386",null,null,null,"N","Lågtemperaturreglerat utrymme saknar temperaturlarm"]
[null,{"$f":"\"3.1.1\"","v":"3.1.1"},"Är temperaturlarm kopplat till mottagare som garanterar åtgärd dygnet runt?",null,null,null,null,null,null,null,null,null,381,"382 383",null,null,null,"N","Temperaturlarm är ej kopplat till mottagare som garanterar åtgärd dygnet runt"]
[null,{"$f":"\"3.1.1.1\"","v":"3.1.1.1"},"Har larmmottagare kunskap samt instruktion om åtgärd vid larm?",null,null,null,null,null,null,null,null,null,382,null,null,null,null,"N","Larmmottagare saknar kunskap samt instruktion om åtgärd vid larm"]
[null,{"$f":"\"3.1.1.2\"","v":"3.1.1.2"},"Finns skriftligt avtal om mottande av samt hantering av larm?",null,null,null,null,null,null,null,null,null,383,null,null,null,null,"N","Skriftligt avtal om mottagande av samt hantering av larm från lågtemperaturreglerat utrymme saknas"]
[null,{"$f":"\"3.1.2\"","v":"3.1.2"},"Finns uppdaterad kontaktpersonslista?",null,null,null,null,null,null,null,null,null,384,385,null,null,null,"N","Uppdaterad kontaktpersonslista för lågtemperaturreglerat utrymme saknas"]
[null,{"$f":"\"3.1.2.1\"","v":"3.1.2.1"},"Är antalet kontaktpersoner tillfredställande?",null,null,null,null,null,null,null,null,null,385,null,null,null,null,"N","Antalet kontaktpersoner för lågtemperaturreglerat utrymme är ej tillfredställande"]
[null,{"$f":"\"3.1.3\"","v":"3.1.3"},"Genomförs systematisk kontroll av larmkedja?",null,null,null,null,null,null,null,null,null,386,null,null,null,null,"N","Systematisk kontroll av larmkedja för lågtemperaturreglerat utrymme saknas"]

{"sheet":"Ansvar","index":20,"n_rows":34,"n_cols":19,"rows_kept":34,"cut":false,"hidden":false,"merged":[]}
[null,null,"Ansvar",null,null,null,null,null,null,null,null,null,34]
[]
[null,null,"Skadestånd","Ja","Nej","Ej aktuell"]
[null,{"$f":"\"1\"","v":"1"},"Kan skada orsakas av myndighetsutövning?",null,null,null,null,null,null,null,null,null,415,416]
[null,{"$f":"\"1.1\"","v":"1.1"},"Är risk för skada orsakad av myndighetsutövning identifierad?",null,null,null,null,null,null,null,null,null,416,417,null,null,null,"N","Risk för skada orsakad av myndighetsutövning är ej identifierad"]
[null,{"$f":"\"1.1.1\"","v":"1.1.1"},"Är nödvändiga åtgärder vidtagna?",null,null,null,null,null,null,null,null,null,417,null,null,null,null,"N","Nödvändiga åtgärder för att minimera risk för skada orsakad av myndighetsutövning är ej vidtagna"]
[null,{"$f":"\"2\"","v":"2"},"Kan en beslutsskada orsakas?",null,null,null,null,null,null,null,null,null,418,419]
[null,{"$f":"\"2.1\"","v":"2.1"},"Är risk för beslutsskada identifierad?",null,null,null,null,null,null,null,null,null,419,420,null,null,null,"N","Risk för beslutsskada är ej identifierad"]
[null,{"$f":"\"2.1.1\"","v":"2.1.1"},"Är nödvändiga åtgärder vidtagna?",null,null,null,null,null,null,null,null,null,420,null,null,null,null,"N","Nödvändiga åtgärder för att minimera risk för beslutsskada är ej vidtagna"]
[null,{"$f":"\"3\"","v":"3"},"Kan tredje parts egendom skadas?",null,null,null,null,null,null,null,null,null,421,422]
[null,{"$f":"\"3.1\"","v":"3.1"},"Är risk för skada på tredje parts egendom identifierad?",null,null,null,null,null,null,null,null,null,422,423,null,null,null,"N","Risk för skada på tredje parts egendom är ej identifierad"]
[null,{"$f":"\"3.1.1\"","v":"3.1.1"},"Är nödvändiga åtgärder vidtagna?",null,null,null,null,null,null,null,null,null,423,null,null,null,null,"N","Nödvändiga åtgärder för att minimera risk för skada på tredje parts egendom är ej vidtagna"]
[null,{"$f":"\"4\"","v":"4"},"Kan personskada på tredje part orsakas?",null,null,null,null,null,null,null,null,null,424,425]
[null,{"$f":"\"4.1\"","v":"4.1"},"Är risk för personskada på tredje part identifierad?",null,null,null,null,null,null,null,null,null,425,426,null,null,null,"N","Risk för personskada på tredje part är ej identifierad"]
[null,{"$f":"\"4.1.1\"","v":"4.1.1"},"Är nödvändiga åtgärder vidtagna?",null,null,null,null,null,null,null,null,null,426,null,null,null,null,"N","Nödvändiga åtgärder för att minimera risk för personskada på tredje part är ej identifierad"]
[]
[null,null,"Upphandling","Ja","Nej","Ej aktuell"]
[null,{"$f":"\"5\"","v":"5"},"Finns riktlinje för upphandling?",null,null,null,null,null,null,null,null,null,427,null,null,null,null,"N","Riktlinje för upphandling saknas"]
[null,{"$f":"\"6\"","v":"6"},"Är ansvarig för upphandling utsedd?",null,null,null,null,null,null,null,null,null,428,429,null,null,null,"N","Utsedd ansvarig för upphandling saknas"]
[null,{"$f":"\"6.1\"","v":"6.1"},"Har utsedd ansvarig tillräcklig kompetens?",null,null,null,null,null,null,null,null,null,429,null,null,null,null,"N","Utsedd ansvarig för upphandling saknar tillräcklig kompetens"]
[null,{"$f":"\"7\"","v":"7"},"Finns utsedd person för genomförande av upphandling?",null,null,null,null,null,null,null,null,null,430,"431 432",null,null,null,"N","Utsedd person för genomförande av upphandling saknas"]
[null,{"$f":"\"7.1\"","v":"7.1"},"Har utsedd person adekvat kompetens?",null,null,null,null,null,null,null,null,null,431,null,null,null,null,"N","Utsedd person som ska genomföra upphandling har ej adekvat kompetens"]
[null,{"$f":"\"7.2\"","v":"7.2"},"Finns beslutsrätt för olika beloppsnivåer?",null,null,null,null,null,null,null,null,null,432,null,null,null,null,"N","Beslutsrätt för olika beloppsnivåer vid upphandling saknas"]
[null,{"$f":"\"8\"","v":"8"},"Samordnas upphandling inom myndigheten?",null,null,null,null,null,null,null,null,null,433,null,null,null,null,"N","Upphangling samordnas ej inom myndigheten"]
[null,{"$f":"\"9\"","v":"9"},"Använder myndigheten de statliga ramavtalen?",null,null,null,null,null,null,null,null,null,434,null,null,null,null,"N","Myndigheten använder ej de statliga ramavtalen"]
[null,{"$f":"\"10\"","v":"10"},"Följs regler för offentlig upphandling?",null,null,null,null,null,null,null,null,null,435,null,null,null,null,"N","Regler för offentlig upphandling följs ej"]
[]
[null,null,"Avtal","Ja","Nej","Ej aktuell"]
[null,{"$f":"\"11\"","v":"11"},"Finns rutin för tecknande av avtal?",null,null,null,null,null,null,null,null,null,436,null,null,null,null,"N","Rutin för tecknande av avtal saknas"]
[null,{"$f":"\"12\"","v":"12"},"Är ansvarig för tecknande av avtal utsedd?",null,null,null,null,null,null,null,null,null,437,438,null,null,null,"N","Ansvarig för tecknande av avtal är ej utsedd"]
[null,{"$f":"\"12.1\"","v":"12.1"},"Har utsedd ansvarig tillräcklig kompetens?",null,null,null,null,null,null,null,null,null,438,null,null,null,null,"N","Utsedd ansvarig för tecknande av avtal saknar tillräcklig kompetens"]
[null,{"$f":"\"13\"","v":"13"},"Granskas avtal ur ett riskperspektiv?",null,null,null,null,null,null,null,null,null,439,null,null,null,null,"N","Avtal granskas ej ur ett riskperspektiv"]
[null,{"$f":"\"14\"","v":"14"},"Är avtal alltid skriftliga?",null,null,null,null,null,null,null,null,null,440,null,null,null,null,"N","Avtal är ej alltid skriftliga"]
[null,{"$f":"\"15\"","v":"15"},"Finns rutin för kontroll av tecknade avtals löptid?",null,null,null,null,null,null,null,null,null,441,null,null,null,null,"N","Rutin för kontroll av tecknade avtals löptid saknas"]

{"sheet":"Farligt gods","index":21,"n_rows":5,"n_cols":19,"rows_kept":5,"cut":false,"hidden":false,"merged":[]}
[null,null,"Farligt gods",null,null,null,null,null,null,null,null,null,5]
[]
[null,null,null,"Ja","Nej","Ej aktuell"]
[null,{"$f":"\"1\"","v":"1"},"Finns ämnen eller produkter som kan innebära risk för hälsa, säkerhet, egendom eller miljö när de transporteras eller används?",null,null,null,null,null,null,null,null,null,442,443]
[null,{"$f":"\"1.1\"","v":"1.1"},"Följs lagen (2006:263) om transporter av farligt gods?",null,null,null,null,null,null,null,null,null,443,null,null,null,null,"N","Lagen (2006:263) om transporter av farligt gods följs ej"]

{"sheet":"Kontinuitetsplanering","index":22,"n_rows":14,"n_cols":19,"rows_kept":14,"cut":false,"hidden":false,"merged":[]}
[null,null,"Kontinuitetsplanering",null,null,null,null,null,null,null,null,null,14]
[]
[null,null,null,"Ja","Nej","Ej aktuell"]
[null,{"$f":"\"1\"","v":"1"},"Finns kontinuitetsplan?",null,null,null,null,null,null,null,null,null,387,"388 389 390 391 392 394 395 396",397]
[null,{"$f":"\"1.1\"","v":"1.1"},"Är kontinuitetsplan uppdaterad?",null,null,null,null,null,null,null,null,null,388,null,null,null,null,"N","Kontinuitetsplan är ej uppdaterad"]
[null,{"$f":"\"1.2\"","v":"1.2"},"Omfattas dokumentation av sekretess?",null,null,null,null,null,null,null,null,null,389,null,null,null,null,"N","Kontinuitetsplan omfattas ej av sekretess"]
[null,{"$f":"\"1.3\"","v":"1.3"},"Finns ansvarig för kontinuitetsplan utsedd?",null,null,null,null,null,null,null,null,null,390,null,null,null,null,"N","Ansvarig för kontinuitetsplan är ej utsedd"]
[null,{"$f":"\"1.4\"","v":"1.4"},"Är kontinuitetsplan känd i organisationen?",null,null,null,null,null,null,null,null,null,391,null,null,null,null,"N","Kontinuitetsplan är ej känd i organisationen"]
[null,{"$f":"\"1.5\"","v":"1.5"},"Är kontinuitetsplan övad tillsammans med personal?",null,null,null,null,null,null,null,null,null,392,393,null,null,null,"N","Kontinuitetsplan är ej övad tillsammans med personal"]
[null,{"$f":"\"1.5.1\"","v":"1.5.1"},"Genomförs övning av kontinuitetsplan systematiskt?",null,null,null,null,null,null,null,null,null,393,null,null,null,null,"N","Övning av kontinuitetsplan genomförs ej systematiskt"]
[null,{"$f":"\"1.6\"","v":"1.6"},"Finns larmlista med kontaktuppgift till nyckelperson inom myndigheten?",null,null,null,null,null,null,null,null,null,394,null,null,null,null,"N","Larmlista med kontaktuppgift till nyckelperson inom myndigheten saknas"]
[null,{"$f":"\"1.7\"","v":"1.7"},"Kan myndigheten starta upp väsentlig verksamhet inom en godtagbar tid från annan geografiska plats?",null,null,null,null,null,null,null,null,null,395,null,null,null,null,"N","Myndigheten kan ej starta upp väsentlig verksamhet inom en godtagbar tid från annan geografisk plats"]
[null,{"$f":"\"1.8\"","v":"1.8"},"Kan väsentlig information och utrustning snabbt flyttas vid behov?",null,null,null,null,null,null,null,null,null,396,null,null,null,null,"N","Väsentlig information och utrustning kan ej snabbt flyttas vid behov"]
[null,{"$f":"\"1.9\"","v":"1.9"},"Är avsaknad av kontinuitetsplan ett medvetet val?",null,null,null,null,null,null,null,null,null,397,null,null,null,null,"N","Behov av kontinuitetsplan är ej analyserat"]

{"sheet":"Laboratoriemiljö","index":23,"n_rows":24,"n_cols":19,"rows_kept":24,"cut":false,"hidden":false,"merged":[]}
[null,null,"Laboratoriemiljö",null,null,null,null,null,null,null,null,null,24]
[]
[null,null,null,"Ja","Nej","Ej aktuell"]
[null,{"$f":"\"1\"","v":"1"},"Har myndigheten laboratoriemiljö i sin verksamhet?",null,null,null,null,null,null,null,null,null,398,"399 400 401 402 403"]
[null,{"$f":"\"1.1\"","v":"1.1"},"Är ansvarig för myndighetens laboratoriemiljö utsedd?",null,null,null,null,null,null,null,null,null,399,null,null,null,null,"N","Ansvarig för myndighetens laboratoriemiljö är ej utsedd"]
[null,{"$f":"\"1.2\"","v":"1.2"},"Genomförs skyddsrond i myndighetens laboratorie?",null,null,null,null,null,null,null,null,null,400,null,null,null,null,"N","Skyddsrond genomförs ej i myndighetens laboratorie"]
[null,{"$f":"\"1.3\"","v":"1.3"},"Har anställd personal den utbildning och kunskap som arbete i laboratoriemiljö kräver?",null,null,null,null,null,null,null,null,null,401,null,null,null,null,"N","Anställd personal har ej den utbildning och kunskap som arbete i laboratoriemiljö kräver"]
[null,{"$f":"\"1.4\"","v":"1.4"},"Har servicepersonal så som väktare, fastighetsskötare och lokalvård med tillträde till myndighetens laboratorie erhållit nödvändig säkerhetsinformation?",null,null,null,null,null,null,null,null,null,402,null,null,null,null,"N","Servicepersonal med tillträde till myndighetens laboratorie har ej erhållit nödvändig säkerhetsinformation"]
[null,{"$f":"\"1.5\"","v":"1.5"},"Förvaras och hanteras forskningsprov på betyggande sätt?",null,null,null,null,null,null,null,null,null,403,null,null,null,null,"N","Forskningsprov förvaras och hanteras ej på betryggande sätt"]
[]
[null,null,"Kemikaliehantering","Ja","Nej","Ej aktuell"]
[null,{"$f":"\"2\"","v":"2"},"Finns kemikalier i verksamheten?",null,null,null,null,null,null,null,null,null,404,"405 408 409 410 411 412"]
[null,{"$f":"\"2.1\"","v":"2.1"},"Krävs tillstånd för den mängd kemikalier som hanteras?",null,null,null,null,null,null,null,null,null,405,406]
[null,{"$f":"\"2.1.1\"","v":"2.1.1"},"Är tillstånd aktuella?",null,null,null,null,null,null,null,null,null,406,407,null,null,null,"N","Tillstånd för den mängd kemikalier som hanteras är ej aktuella"]
[null,{"$f":"\"2.1.1.1\"","v":"2.1.1.1"},"Följs den tillståndsgivna mängden upp systematiskt?",null,null,null,null,null,null,null,null,null,407,null,null,null,null,"N","Den tillståndsgivna mängden kemikalier följs ej upp systematiskt"]
[null,{"$f":"\"2.2\"","v":"2.2"},"Förvaras kemikalier betryggande?",null,null,null,null,null,null,null,null,null,408,null,null,null,null,"N","Kemikalier förvaras ej betryggande"]
[null,{"$f":"\"2.3\"","v":"2.3"},"Har personal som hanterar kemikalier rätt utbildning?",null,null,null,null,null,null,null,null,null,409,null,null,null,null,"N","Personal som hanterar kemikalier saknar rätt utbildning"]
[null,{"$f":"\"2.4\"","v":"2.4"},"Finns rutin för hur kemikalier ska hanteras?",null,null,null,null,null,null,null,null,null,410,null,null,null,null,"N","Rutin gällande hantering av kemikalier saknas"]
[null,{"$f":"\"2.5\"","v":"2.5"},"Är kemikalier tydligt och rätt uppmärkt?",null,null,null,null,null,null,null,null,null,411,null,null,null,null,"N","Kemikalier är ej tydligt och rätt uppmärkt"]
[null,{"$f":"\"2.6\"","v":"2.6"},"Finns instruktion gällande återvinning av farligt avfall?",null,null,null,null,null,null,null,null,null,412,null,null,null,null,"N","Instruktion gällande återvinning av farligt avfall saknas"]
[]
[null,null,"ATEX","Ja","Nej","Ej aktuell"]
[null,{"$f":"\"3\"","v":"3"},"Omfattas myndighetens verksamhet av ATEX-direktiven?",null,null,null,null,null,null,null,null,null,413,414]
[null,{"$f":"\"3.1\"","v":"3.1"},"Följs krav som ATEX-direktiven ställer?",null,null,null,null,null,null,null,null,null,414,null,null,null,null,"N","ATEX-direktivens krav är ej uppfyllda"]

{"sheet":"Bruttolista","index":24,"n_rows":0,"n_cols":0,"rows_kept":0,"cut":false,"hidden":true,"merged":[]}

{"sheet":"Behandla risk","index":25,"n_rows":0,"n_cols":0,"rows_kept":0,"cut":false,"hidden":true,"merged":[]}

{"sheet":"Manual","index":26,"n_rows":450,"n_cols":4,"rows_kept":450,"cut":false,"hidden":false,"merged":[]}
[null,"Manual"]
[]
[null,null,"Verktyget för Verksamhetsanalys utgår från en huvudmeny där "]
[null,null,"användaren kan gå mellan de olika avsnitten: "]
[null,null,"Uppstart, Manual, Analys, Behandla risk och Rapport."]
[]
[]
[]
[]
[]
[]
[]
[]
[]
[]
[]
[]
[]
[]
[]
[]
[]
[null,null,null,"Välj \"Aktivera innehåll\"."]
[]
[]
[]
[]
[]
[]
[]
[]
[]
[]
[]
[]
[]
[]
[]
[]
[]
[null,null,null,"Fyll i efterfrågad information."]
[]
[]
[]
[]
[]
[]
[]
[]
[]
[]
[]
[]
[]
[]
[]
[]
[]
[]
[]
[]
[]
[]
[]
[]
[]
[null,null,null,"I avsnittet Uppstart finner användaren en presentation av verktyget "]
[null,null,null,"samt frågor som arbetsgruppen inledningsvis bör diskutera tillsammans."]
[]
[]
[]
[]
[]
[]
[]
[]
[]
[]
[]
[]
[]
[]
[]
[]
[]
[]
[null,null,null,"Här visas avsnittet Analys."]
[]
[]
[]
[]
[]
[]
[]
[]
[]
[]
[]
[]
[]
[]
[]
[]
[]
[]
[]
[]
[]
[]
[]
[]
[]
[]
[]
[]
[]
[null,null,null,"Per kapitel finns tillhörande frågor som användaren svarar på."]
[]
[]
[]
[]
[]
[]
[]
[]
[]
[]
[]
[]
[]
[]
[]
[]
[]
[]
[null,null,null,"En del av svarsalternativen kan leda till följdfrågor."]
[]
[]
[]
[]
[]
[]
[]
[]
[]
[]
[]
[]
[]
[]
[]
[]
[]
[]
[]
[]
[]
[]
[]
[]
[]
[]
[]
[]
[null,null,null,"När alla frågor behandlats. Klicka på \"Klar\"."]
[]
[]
[]
[]
[]
[]
[]
[]
[]
[]
[]
[]
[]
[]
[]
[]
[]
[]
[]
[]
[]
[]
[null,null,null,"De kapitel som är färdigbehandlade markeras automatiskt med grönt."]
[]
[]
[]
[]
[]
[]
[]
[]
[]
[]
[]
[]
[]
[]
[]
[]
[]
[]
[]
[]
[]
[]
[]
[]
[]
[]
[null,null,null,"När alla kapitel är färdigbehandlade skapas en bruttolista."]
[null,null,null,"Kapitlen kan behandlas i annan ordning än löpande genom att klicka "]
[null,null,null,"på kapitelraden längst ner i bild."]
[null,null,null,"Användaren kan när som helst spara pågående arbete och återuppta vid "]
[null,null,null,"ett senare tillfälle."]
[]
[]
[]
[]
[]
[]
[]
[]
[]
[]
[]
[]
[]
[]
[]
[]
[]
[null,null,null,"Identifierade brister prioriteras efter en tregradig skala."]
[]
[]
[]
[]
[]
[]
[]
[]
[]
[]
[]
[]
[]
[]
[]
[]
[]
[]
[]
[]
[]
[]
[]
[]
[]
[]
[]
[]
[]
[]
[]
[]
[null,null,null,"När alla identifierade brister prioriterats. Klicka på \"Klar\"."]
[]
[]
[]
[]
[]
[]
[]
[]
[]
[]
[]
[]
[]
[]
[]
[]
[]
[]
[]
[null,null,null,"Här visas avsnittet Behandla risk."]
[]
[]
[]
[]
[]
[]
[]
[]
[]
[]
[]
[]
[]
[]
[]
[]
[]
[]
[]
[]
[]
[]
[]
[]
[]
[]
[]
[]
[null,null,null,"Prioriterade brister tilldelas en riskägare samt tidsplan."]
[]
[]
[]
[]
[]
[]
[]
[]
[]
[]
[]
[]
[]
[]
[]
[]
[]
[]
[null,null,null,"När alla prioriterade brister behandlats. Klicka på \"Klar\"."]
[]
[]
[]
[]
[]
[]
[]
[]
[]
[]
[]
[]
[]
[]
[]
[]
[]
[]
[]
[]
[]
[]
[]
[]
[]
[]
[]
[]
[]
[]
[null,null,null,"Här visas avsnittet Rapport."]
[]
[]
[]
[]
[]
[]
[]
[]
[]
[]
[]
[]
[null,null,null,"Rapportfil skapas  i ett nytt dokument."]
[null,null,null,"Välj de avsnitt som ska skapas samt eventuellt skrivas ut."]
[]
[]
[null,null,null,"Kapitlen Uppstart och Manual kan skrivas ut direkt från respektive"]
[null,null,null,"avsnitt."]
[]
[]
[]
[]
[]
[]
[]
[]
[]
[]
[]
[]
[]
[]
[]
[]
[]
[]
[]
[]
[]
[]
[]
[]
[]
[]
[]
[]
[]
[]
[]
[null,null,null,"Här finner användaren kontaktuppgifter till Kammarkollegiets"]
[null,null,null,"Risk managers vid frågor."]
[]
[]
[]
[]
[]
[]
[]
[]
[null,"x"]
[null,"x"]
[null,"x"]
[null,"x"]
[null,"x"]
[null,"x"]
[null,"x"]
[null,"x"]
[null,"x"]
[null,"x"]
[null,"x"]
[null,"x"]
[null,"x"]
[null,"x"]
[null,"x"]
[null,"x"]
[null,"x"]
[null,"x"]
[null,"x"]
[null,"x"]
[null,"x"]
[null,"x"]

{"sheet":"Rapport","index":27,"n_rows":9,"n_cols":20,"rows_kept":9,"cut":false,"hidden":false,"merged":[]}
[null,"Rapport"]
[]
[null,"Skriv ut:"]
[null,"Bruttolista",null,null,null,null,null,null,null,null,null,null,null,null,null,null,null,null,null,true]
[null,"Behandla risk",null,null,null,null,null,null,null,null,null,null,null,null,null,null,null,null,null,true]
[null," + Kommentarer",null,null,null,null,null,null,null,null,null,null,null,null,null,null,null,null,null,true]
[]
[]
[null,null,null,null,null,null,null,null,null,null,null,null,null,null,null,null,null,null,null,true]

{"sheet":"Kontaktuppgifter","index":28,"n_rows":3,"n_cols":7,"rows_kept":3,"cut":false,"hidden":false,"merged":[]}
[null,null,"Kontaktuppgifter"]
[]
[null,null,"Ulf Strandberg",null,"054-22 12 16",null,"ulf.strandberg@kammarkollegiet.se"]

{"sheet":"Inställningar","index":29,"n_rows":23,"n_cols":2,"rows_kept":23,"cut":false,"hidden":false,"merged":[]}
["Flikar/frågeblad","Obligatoriskt riskområde"]
["Rutiner och styrning","X"]
["Organisation","X"]
["Riskkostnad","X"]
["Information","X"]
["Person","X"]
["Skalskydd","X"]
["Utrymning","X"]
["Brand","X"]
["El","X"]
["Vatten","X"]
["IT","X"]
["Fordon","X"]
["Restvärde","X"]
["Tillbudsrapportering","X"]
["Försörjningssystem","X"]
["Fastighet","X"]
["Ordning och reda","X"]
["Värdefull egendom","X"]
["Kontinuitetsplanering","X"]
["Laboratoriemiljö","X"]
["Ansvar","X"]
["Farligt gods","X"]